Workbook

Sheet Contents
B3: Electricity Distribution Network Service Provider F-factor Reporting Template
B5: Table of contents
C8: Cover sheet | F8: 2. Fire start report
C12: 1. F-factor summary | F12: 3. Systems and Audit
C19: ="NOTE: This spreadsheet includes IRU targets up to and including FY"&yearMax -> NOTE: This spreadsheet includes IRU targets up to and including FY2024/25
C21: ="NOTE: This spreadsheet was last updated on "&TEXT(revisionDate,"DD MMMM YYY") -> NOTE: This spreadsheet was last updated on 08 August 2024 | O21: 2024-08-08
O22: TRUE

Sheet Cover
B8: Distribution Network Service Provider
B9: Fire start report
B11: This template is to be used by a DNSP to provide a fire start report to the AER in accordance with section 5 of the F-factor Order in Council.
B14: Colour coding of input sheets:
B15: Dark blue = AER headings
B16: Grey = AER instructions
B17: Yellow = Input cells
B18: Light orange = Automatically-generated cells
B20: Leave coloured cells blank if no information exists - PLEASE DO NOT ENTER TEXT unless specifically requested to do so.
B21: The cells and structure of the spreadsheet is locked to prevent inadvertent interference with the automated settings.
B22: All dollar amounts are to be unrounded, and in nominal terms.
B27: DNSP: | D27: Powercor
B29: DNSP - trading name: | D29: Powercor Australia Ltd
B31: DNSP - Australian business number: | D31: ACN 064 651 109
B33: Reporting year: | D33: 2023/24
B38: Business address | C38: Address | E38: 40 Market Street
C39: Suburb | E39: Melbourne
D40: State | E40: Victoria | F40: Postcode
B42: Postal address | C42: Address | E42: Locked Bag 14090
C43: Suburb | E43: Melbourne
D44: State | E44: Victoria | F44: Postcode
B47: Contact name/s
B48: Contact phone/s
B49: Contact email address/s

Sheet 1. F-Factor summary
B1: =IF(Cover!D27="","[DNSP Name]", Cover!D27) -> Powercor | C1: IRU target: | D1: =IF(SUM(K2:O2)=0,"",SUM(K2:O2)) -> 185.5 | K1: AusNet Services | L1: CitiPower | M1: Jemena | N1: Powercor | O1: United Energy
B2: F-factor data reporting | C2: IRU amount: | D2: =IF(SUM('2. Individual fire start info'!S38:S1315)=0,"",SUM('2. Individual fire start info'!S38:S1315)) -> 186.1012 | J2: current | K2: =IF(OR($B3="[Year]",$B1="[DNSP Name]",$B1<>K1),"",LOOKUP($B3,$J3:$J101,K3:K101)) ->  | L2: =IF(OR($B3="[Year]",$B1="[DNSP Name]",$B1<>L1),"",LOOKUP($B3,$J3:$J101,L3:L101)) ->  | M2: =IF(OR($B3="[Year]",$B1="[DNSP Name]",$B1<>M1),"",LOOKUP($B3,$J3:$J101,M3:M101)) ->  | N2: =IF(OR($B3="[Year]",$B1="[DNSP Name]",$B1<>N1),"",LOOKUP($B3,$J3:$J101,N3:N101)) -> 185.5 | O2: =IF(OR($B3="[Year]",$B1="[DNSP Name]",$B1<>O1),"",LOOKUP($B3,$J3:$J101,O3:O101)) -> 
B3: =IF(Cover!D33="","[Year]",Cover!D33) -> 2023/24 | C3: Revenue adjustment: | D3: =IF(OR(D1="",D2=""),"",15000*(D1-D2)) -> -9018 | J3: 2016/17 | K3: 247.7 | L3: 3.4 | M3: 9.7 | N3: 468 | O3: 22.3
J4: 2017/18 | K4: 247.7 | L4: 3.4 | M4: 9.7 | N4: 468 | O4: 22.3
B5: Table 2: Summary of total fire starts by F factor Order definition | J5: 2018/19 | K5: 247.7 | L5: 3.4 | M5: 9.7 | N5: 468 | O5: 22.3
B6: This is a summary of data in worksheet "2. Fire Start Report" | J6: 2019/20 | K6: 221.1 | L6: 3.4 | M6: 9.7 | N6: 412.8 | O6: 22.3
B7: Kind of Fire Start by definition of fire start under clause 5 of F-factor Order | C7: Total fires by cause | J7: 2020/21 | K7: 177.5 | L7: 1.3 | M7: 4.2 | N7: 277.6 | O7: 18.7
B8: Started in or originated from a distribution system | C8: =COUNTIF('2. Individual fire start info'!$N$38:$N$1315,'1. F-Factor summary'!$B8) -> 165 | J8: 2021/22 | K8: 164.3 | L8: 1.9 | M8: 3.7 | N8: 235.2 | O8: 19
B9: Started by any tree, or part of a tree, falling upon or coming into contact with a distribution system | C9: =COUNTIF('2. Individual fire start info'!$N$38:$N$1315,'1. F-Factor summary'!$B9) -> 16 | J9: 2022/23 | K9: 149.7 | L9: 1.5 | M9: 2.7 | N9: 188 | O9: 13.9
B10: Started by any person, bird, reptile or other animal coming into contact with a distribution system | C10: =COUNTIF('2. Individual fire start info'!$N$38:$N$1315,'1. F-Factor summary'!$B10) -> 33 | J10: 2023/24 | K10: 131.7 | L10: 1.7 | M10: 2.7 | N10: 185.5 | O10: 14.2
B11: Started by lightning striking a distribution system or a part of a distribution system | C11: =COUNTIF('2. Individual fire start info'!$N$38:$N$1315,'1. F-Factor summary'!$B11) -> 16 | J11: 2024/25 | K11: 127 | L11: 1.7 | M11: 2.3 | N11: 147.9 | O11: 11.7
B12: Started by any other thing forming part of or coming into contact with a distribution system | C12: =COUNTIF('2. Individual fire start info'!$N$38:$N$1315,'1. F-Factor summary'!$B12) -> 14
B13: Otherwise started by a distribution system | C13: =COUNTIF('2. Individual fire start info'!$N$38:$N$1315,'1. F-Factor summary'!$B13) -> 0
B14: Total | C14: =SUM(C8:C13) -> 244
O21: 45496

Sheet 2. Individual fire start info
B1: =IF(Cover!D27="","[DNSP Name]", Cover!D27) -> Powercor
B2: F-factor data reporting
B3: =IF(Cover!D33="","[Year]",Cover!D33) -> 2023/24
B6: Instructions:
B8: ="Enter into this worksheet fire start data, from any IT system, which have been recorded by "&IF(Cover!D27="","[DNSP Name]", Cover!D27)&". Note that fire starts must be in accordance with the definition of a fire start in the Order In Council." -> Enter into this worksheet fire start data, from any IT system, which have been recorded by Powercor. Note that fire starts must be in accordance with the definition of a fire start in the Order In Council.
B10: "Fire" should be interpreted using its common meaning and can be defined as a process in which substances combine chemically with oxygen from the air and typically give out bright light, heat and smoke. A fire should be recorded where there is evidence of smoking, charring, scorching, burning or any other evidence that a fire had occurred.
B12: =IF(Cover!D27="","[DNSP Name] must provide:", CONCATENATE(Cover!D27," must provide:")) -> Powercor must provide:
B14: Table 3 - Individual Fire Starts
B15: (1) Date - dd/mm/yyyy
B16: (2) Time - if known, the 24-hour time of the fire start hh:mm
B17: (3) Latitude and longitude of the fire start as decimal coordinates
B18: (4) Address of the property on which the incident occurred or closest to the incident
B19: (5) Asset number for the asset nearest the fire start
B20: =" (6) Feeder ID for the polyphase overhead line or underground cable nearest the fire start in the "&B1&" network" -> (6) Feeder ID for the polyphase overhead line or underground cable nearest the fire start in the Powercor network
B21: (7) Voltage on the line in which the fire start occurred (note: this may not be the nearest polyphase overhead line)
B22: (8) Network categorisation - CBD, Urban, Rural Long or Rural Short
B23: (9) Asset type of primary asset causing fire in accordance with OSIRIS asset categories
B24: (10) Where the asset involved in the fire is a transformer or an overhead or underground line, provide the phase, or phases, of the line or transformer
B25: (11) Kind of fire start in accordance with categories specified in Clause 5 of the F-factor Order-In-Council [Note: This is interpreted as the initiating event rather than the cause. For instance, a fuse failure resulting from a lightning strike would be attributed to "lightning" even if the fuse should have protected against such strikes.]
B26: (12) Identify the location of the fire start in accordance with the categories specified in Clause 11(b) of the F-factor Order-In-Council
B27: (13) Provide the BOM fire danger rating applicable at the time of the fire start (data is available on the EM-COP website) [Note: The fire danger rating applies from the time it was issued; ratings do no apply retrospectively. The rating from the previous day carries into the current day until the rating is changed. If no fire danger rating is issued for the day, a rating of "No forecast" applies for the whole day.]
B28: =" (14) "&IF(Cover!D27="","[DNSP Name]", Cover!D27)&"'s record number for the incident" -> (14) Powercor's record number for the incident
B29: (15) ESV's OSIRIS reference number for the incident
B30: (16) Free text description of the fault containing relevant comments from field reports
B34: Table 2: Individual Fire Starts
B36: Number | C36: Fire starts | L36: Fire Type | O36: Risk Factors | S36: IRU amount | T36: Additional information
C37: Date 1 | D37: Time 2 | E37: Latitude 3 | F37: Longitude 3 | G37: Address of incident 4 | H37: ID of nearest asset 5 | I37: ID of nearest polyphase line 6 | J37: Voltage of line in which fire start occurred 7 | K37: Network categorisation 8 | L37: Type of primary asset involved in fire start 9 | M37: Phase(s) of line or transformer 10 | N37: Kind of fire start as per Clause 5 of F-factor Order-In-Council 11 | O37: Location area 12 | P37: Location multiplier | Q37: Fire danger rating 13 | R37: Danger multiplier | S37: Product of multipliers | T37: DNSP record number 14 | U37: OSIRIS (ESV) reference number 15 | V37: Fault description 16
A38: =COUNTA(C38:O38,Q38,T38:V38) -> 17 | B38: 1 | C38: 2023-07-02 | D38: 11:21 | E38: -36.778213 | F38: 144.234659 | G38: 16 Akins Rise, Golden Square VIC 3555, Australia | H38: 60247949 | I38: BET001 | J38: Low voltage AC (<1kV) | K38: Rural Long | L38: - services pit | M38: three phase | N38: Started by any person, bird, reptile or other animal coming into contact with a distribution system | O38: LBRA only | P38: =IF(O38="","",IF(O38="LBRA only",0.2,IF(O38="HBRA only",1,IF(O38="within electric line construction area",19.8,IF(O38="within area delineated on plan LEGL./16-354",4.6,""))))) -> 0.2 | Q38: No rating | R38: =IF(Q38="","",IF(Q38="No rating",0.05,IF(Q38="Moderate",0.334,IF(Q38="High",0.678,IF(Q38="Extreme",2.272,4.754))))) -> 0.05 | S38: =IF(OR(P38="",R38=""),"",IF(AND(O38="within electric line construction area",Q38="No forecast"),1,P38*R38)) -> 0.01 | T38: INC-0021175 | U38: 20230704PWA_01 | V38: Bendigo fault crew were called out to an all supply failure at # 15 Akins Rise, upon inspection of the LV service pit on the boundary of #15 & #16 crew found that an illegal connection from pit to #16 had caused a fault at a IPC connected by unknown party resulting in a fire which caused damage to wiring and outage to both properties. Illegal wiring was run into LV pit, further illegal wiring was found at the back of the meter board at #16 Akins Rise, matter was reported to police. No reported 3rd party damage or injuries. | Y38: Overhead conductors
A39: 17 | B39: 2 | C39: 2023-07-03 | D39: 15:00 | E39: -38.315359 | F39: 142.261535 | G39: 341 Badhams Rd, Toolong VIC 3285, Australia | H39: 30326905 | I39: KRT013 | J39: Low voltage AC (<1kV) | K39: Rural Long | L39: - connection box | M39: three phase | N39: Started in or originated from a distribution system | O39: within area delineated on plan LEGL./16-354 | P39: 4.6 | Q39: No rating | R39: =IF(Q39="","",IF(Q39="No rating",0.05,IF(Q39="Moderate",0.334,IF(Q39="High",0.678,IF(Q39="Extreme",2.272,4.754))))) -> 0.05 | S39: 0.23 | T39: INC-0021177 | U39: 20230704PWA_02 | V39: Fire comms reported a pole fire at the incident location. On arrival the crew found that an overheated connection caused a 480V FOLCB to catch fire. There was no ground fire and no other reported damage or injuries. | Y39: - overhead conductor (bare; aluminium core steel reinforced)
A40: 17 | B40: 3 | C40: 2023-07-03 | D40: 18:05 | E40: -34.170062 | F40: 142.145566 | G40: 2 ETHERINGTON DRIVE, MILDURA VIC 3500 | H40: 34005004 | I40: MBN023 | J40: Low voltage AC (<1kV) | K40: Rural Short | L40: - fuse (any other type) | M40: single phase | N40: Started in or originated from a distribution system | O40: LBRA only | P40: 0.2 | Q40: No rating | R40: 0.05 | S40: 0.01 | T40: INC-0021191 | U40: 20230705PWA_01 | V40: Customer REC called in urgent isolation request at the incident location. Upon arrival Mildura fault crew found that a LV service fuse had overheated, melted and burnt the chipboard meter panel it was mounted on. Minor damage resulted in the meter panel which didn't need replacing. No 3rd party damage or injuries. | Y40: - overhead conductor (bare; all aluminium conductor)
A41: 17 | B41: 4 | C41: 2023-07-05 | D41: 22:25 | E41: -37.321574 | F41: 144.134716 | G41: 7 Western Ave, Hepburn VIC 3461, Australia | H41: 30007819 | I41: BAN008 | J41: Low voltage AC (<1kV) | K41: Rural Long | L41: - connection box | M41: three phase | N41: Started in or originated from a distribution system | O41: within area delineated on plan LEGL./16-354 | P41: 4.6 | Q41: No rating | R41: 0.05 | S41: 0.23 | T41: INC-0021213 | U41: 20230706PWA_01 | V41: A report was received from the CFA relating to a fuse box fire on a pole at the above address. A crew attended and determined that the incoming active conductor to an LV fuse box on Westav Pole 5 had overheated and caught fire. When the crew arrived the fire had been extinguished. There was no ground fire or third party damage. | Y41: - overhead conductor (bare; copper)
A42: 17 | B42: 5 | C42: 2023-07-06 | D42: 09:19 | E42: -38.466088 | F42: 144.102153 | G42: 16 Inlet Cres, Aireys Inlet VIC 3231, Australia | H42: 30070126 | I42: TQY021 | J42: Low voltage AC (<1kV) | K42: Rural Short | L42: - overhead service conductor (residential) | M42: single phase | N42: Started by any tree, or part of a tree, falling upon or coming into contact with a distribution system | O42: LBRA only | P42: 0.2 | Q42: No rating | R42: 0.05 | S42: 0.01 | T42: INC-0021214 | U42: 20230706PWA_02 | V42: While running through a park reserve customer witnessed overhead line on fire. When crews arrived on site they noted that a pole-to-pole overhead service caught fire due to contact and rubbing against tree branches. No ground fire occurred. | Y42: - overhead conductor (bare; steel)
A43: 17 | B43: 6 | C43: 2023-07-14 | D43: 09:38 | E43: -37.902375 | F43: 144.672252 | G43: 36 Anton Cl, Werribee VIC 3030, Australia | H43: 30115932 | I43: WBE022 | J43: Low voltage AC (<1kV) | K43: Urban | L43: - connection box | M43: three phase | N43: Started in or originated from a distribution system | O43: LBRA only | P43: 0.2 | Q43: No rating | R43: 0.05 | S43: 0.01 | T43: INC-0021335 | U43: 20230717PWA_01 | V43: Report of fire at incident location On arrival crew found FOLCB on customers fascia burnt There was no injuries. | Y43: - overhead conductor (ABC)
A44: 17 | B44: 7 | C44: 2023-07-15 | D44: 20:00 | E44: -38.3028 | F44: 142.373499 | G44: Anne St/High St, Koroit VIC 3282, Australia | H44: 31028806 | I44: KRT013 | J44: Low voltage AC (<1kV) | K44: Rural Long | L44: - connection box | M44: three phase | N44: Started in or originated from a distribution system | O44: LBRA only | P44: 0.2 | Q44: No rating | R44: 0.05 | S44: 0.01 | T44: INC-0021336 | U44: 20230717PWA_02 | V44: A nearby customer reported a pole fire and an orange glow coming from the pole at the incident location. On arrival the crew found that a low voltage UG fuse box had overheated and failed on the pole at the incident location. Debris had fallen to the ground, however there was no ground fire due to the wet conditions. There were no reported injuries or third party damage. | Y44: - overhead conductor (covered uninsulated)
A45: 17 | B45: 8 | C45: 2023-07-17 | D45: 18:52 | E45: -36.762822 | F45: 144.228866 | G45: 6 Wicks Rd, Maiden Gully VIC 3551, Australia | H45: 31003170 | I45: BET006 | J45: Low voltage AC (<1kV) | K45: Rural Short | L45: - connection box | M45: three phase | N45: Started in or originated from a distribution system | O45: within area delineated on plan LEGL./16-354 | P45: 4.6 | Q45: No rating | R45: 0.05 | S45: 0.23 | T45: INC-0021387 | U45: 20230719PWA_01 | V45: Vicfire reported fire at incident location. Upon arrival crew found that the 100a folcb had melted and transformer lv leads were damaged and required replacing. Fire brigade were onsite. Charred debris fell to ground, no grassfire. | Y45: - overhead conductor (insulated)
A46: 17 | B46: 9 | C46: 2023-08-03 | D46: 21:11 | E46: -38.126386 | F46: 144.323669 | G46: 26-28 Glenfine Ave, Hamlyn Heights VIC 3215, Australia | H46: 30300576 | I46: GL013 | J46: 22kV AC | K46: Urban | L46: - fuse (Fault Tamer) | M46: three phase | N46: Started by any person, bird, reptile or other animal coming into contact with a distribution system | O46: LBRA only | P46: 0.2 | Q46: No rating | R46: 0.05 | S46: 0.01 | T46: INC-0021615 | U46: 20230807PWA_01 | V46: A crew was dispatched to investigate a pole fire, on arrival the crew found a HV fuse had broken in half and was dangling by the lead against the pole. The crew believed the fuse broke by a possum climbing on the fuse between the crossarm and fuse unit. A vehicle below the pole was damaged by fallen fuse debris & molten from the burning fuse unit. There was no ground fire or reported injuries. | Y46: Service lines
A47: =COUNTA(C47:O47,Q47,T47:V47) -> 17 | B47: 10 | C47: 2023-08-17 | D47: 12:58 | E47: -37.049136 | F47: 143.739607 | G47: 35 NOLAN STREET, MARYBOROUGH VIC 3465 | H47: 33013531 | I47: MRO006 | J47: Low voltage AC (<1kV) | K47: Urban | L47: - connection box | M47: three phase | N47: Started in or originated from a distribution system | O47: LBRA only | P47: =IF(O47="","",IF(O47="LBRA only",0.2,IF(O47="HBRA only",1,IF(O47="within electric line construction area",19.8,IF(O47="within area delineated on plan LEGL./16-354",4.6,""))))) -> 0.2 | Q47: No rating | R47: =IF(Q47="","",IF(Q47="No rating",0.05,IF(Q47="Moderate",0.334,IF(Q47="High",0.678,IF(Q47="Extreme",2.272,4.754))))) -> 0.05 | S47: =IF(OR(P47="",R47=""),"",IF(AND(O47="within electric line construction area",Q47="No forecast"),1,P47*R47)) -> 0.01 | T47: INC-0021775 | U47: 20230817PWA_02 | V47: Crew found fire on 3 phase FOLCB fIre services had already left the scene as fire extinguished itself on cross arm. There was no ground fire or injuries | Y47: - overhead service conductor (residential)
A48: =COUNTA(C48:O48,Q48,T48:V48) -> 17 | B48: 11 | C48: 2023-08-18 | D48: 13:27 | E48: -36.141797 | F48: 145.612567 | G48: 108 Centre Rd, Invergordon VIC 3636, Australia | H48: 32182228 | I48: NKA001 | J48: 22kV AC | K48: Rural Long | L48: - dropper / bridge | M48: three phase | N48: Started in or originated from a distribution system | O48: LBRA only | P48: =IF(O48="","",IF(O48="LBRA only",0.2,IF(O48="HBRA only",1,IF(O48="within electric line construction area",19.8,IF(O48="within area delineated on plan LEGL./16-354",4.6,""))))) -> 0.2 | Q48: No rating | R48: =IF(Q48="","",IF(Q48="No rating",0.05,IF(Q48="Moderate",0.334,IF(Q48="High",0.678,IF(Q48="Extreme",2.272,4.754))))) -> 0.05 | S48: =IF(OR(P48="",R48=""),"",IF(AND(O48="within electric line construction area",Q48="No forecast"),1,P48*R48)) -> 0.01 | T48: INC-0021795 | U48: 20230821PWA_01 | V48: HV lead and an LA tail had made contact resulting in both of them being destroyed. | Y48: - overhead service conductor (commercial / industrial)
A49: 17 | B49: 12 | C49: 2023-08-24 | D49: 19:14 | E49: -34.340518 | F49: 142.172926 | G49: 360 Wilga Rd, Red Cliffs VIC 3496, Australia | H49: 31035887 | I49: RCT022 | J49: Low voltage AC (<1kV) | K49: Rural Short | L49: - fuse (any other type) | M49: single phase | N49: Started in or originated from a distribution system | O49: HBRA only | P49: 1 | Q49: No rating | R49: 0.05 | S49: 0.05 | T49: INC-0022624 | U49: 20231020PWA_02 | V49: Fire reported in meter board. board, meters and fuses replaced no ground fire Found during outage data review | Y49: - overhead service conductor (subdivision / construction)
A50: 17 | B50: 13 | C50: 2023-09-04 | D50: 07:19 | E50: -37.84910688 | F50: 144.8683445 | G50: 87 Maddox road Williamstown North | H50: 33074942 | I50: BLT017 | J50: 22kV AC | K50: Urban | L50: - connector / termination | M50: three phase | N50: Started by any person, bird, reptile or other animal coming into contact with a distribution system | O50: LBRA only | P50: 0.2 | Q50: No rating | R50: 0.05 | S50: 0.01 | T50: INC-0021959 | U50: 20230905PWA_01 | V50: Ground fire found at base of pole, Crew found bridging connector had ruptured consistent with high fault current flow from bird-initiated fault downstream | Y50: - overhead service conductor (other)
A51: 17 | B51: 14 | C51: 2023-09-08 | D51: 08:00 | E51: -38.346227 | F51: 142.321775 | G51: 85 Survey Ln, Killarney VIC 3283, Australia | H51: 32198187 | I51: KRT022 | J51: 22kV AC | K51: Rural Short | L51: - pole (wood) | M51: three phase | N51: Started in or originated from a distribution system | O51: within area delineated on plan LEGL./16-354 | P51: 4.6 | Q51: No rating | R51: 0.05 | S51: 0.23 | T51: INC-0022041 | U51: 20230911PWA_01 | V51: Customer reported Pole to pole power line near road has snapped, power line is lying on the side road/nature strip and partially on road, crossarm and pole is on fire. Crew found pole 14 had burnt and/or broken at LV crossarm position | Y51: - underground service cable (residential)
A52: 17 | B52: 15 | C52: 2023-09-08 | D52: 07:13 | E52: -38.338199 | F52: 142.339182 | G52: 999 Princes Hwy, Tower Hill VIC 3283, Australia | H52: 31030123 | I52: KRT022 | J52: 22kV AC | K52: Rural Short | L52: - guy wire | M52: three phase | N52: Started in or originated from a distribution system | O52: within area delineated on plan LEGL./16-354 | P52: 4.6 | Q52: No rating | R52: 0.05 | S52: 0.23 | T52: INC-0022043 | U52: 20230911PWA_02 | V52: a crew reported the guy wire red hot and now smoking on the ground - later reported pole on fire. Stay apparently failed and top section contacted HV fuse Pole burnt at stay bolt position, isolated and extinguished by crew , severe storm in progress | Y52: - underground service cable (commercial / industrial)
A53: 17 | B53: 16 | C53: 2023-09-08 | D53: 18:16 | E53: -38.274976 | F53: 141.965189 | G53: 54 Fergusons Rd, Codrington VIC 3285, Australia | H53: 31028725 | I53: KRT013 | J53: 22kV AC | K53: Rural Long | L53: - pole (wood) | M53: three phase | N53: Started in or originated from a distribution system | O53: within area delineated on plan LEGL./16-354 | P53: 4.6 | Q53: No rating | R53: 0.05 | S53: 0.23 | T53: INC-0022047 | U53: 20230911PWA_05 | V53: Fire at top crossarm of pole. | Y53: - underground service cable (subdivision / construction)
A54: 17 | B54: 17 | C54: 2023-09-08 | D54: 17:52 | E54: -38.427852 | F54: 142.97337 | G54: Paddock opposite 355 Merretts Rd, Glenfyne. | H54: 30597314 | I54: TRG013 | J54: 12.7kV AC (SWER) | K54: Rural Long | L54: - pole (wood) | M54: single wire earth return (SWER) | N54: Started in or originated from a distribution system | O54: within area delineated on plan LEGL./16-354 | P54: 4.6 | Q54: No rating | R54: 0.05 | S54: 0.23 | T54: INC-0022048 | U54: 20230911PWA_06 | V54: A customer and the emergency services reported a pole on fire and wires down at the incident location. On arrival the crew found that a SWER tee-off pole had burnt off near the top of the pole. | Y54: - underground service cable (other)
A55: 17 | B55: 18 | C55: 2023-09-13 | D55: 08:21 | E55: -35.906721 | F55: 145.639037 | G55: 14 Schubert St, Cobram VIC 3644, Australia | H55: 31037763 | I55: CME015 | J55: Low voltage AC (<1kV) | K55: Rural Short | L55: - connection box | M55: three phase | N55: Started in or originated from a distribution system | O55: LBRA only | P55: 0.2 | Q55: No rating | R55: 0.05 | S55: 0.01 | T55: INC-0022076 | U55: 20230913PWA_02 | V55: Customer advised of LV supply box on fire. Upon arrival the crew found that FOLCB was burnt. There was no reportable ground fire. | Y55: Underground cables
A56: 17 | B56: 19 | C56: 2023-09-13 | D56: 13:49 | E56: -36.033254 | F56: 145.99529 | G56: 103 Benalla-Yarrawonga Rd, Yarrawonga VIC 3730, Australia | H56: 33082072 | I56: CME014 | J56: Low voltage AC (<1kV) | K56: Rural Short | L56: - connection box | M56: three phase | N56: Started in or originated from a distribution system | O56: LBRA only | P56: 0.2 | Q56: No rating | R56: 0.05 | S56: 0.01 | T56: INC-0022088 | U56: 20230913PWA_04 | V56: Emergency services reported of pole fire. Upon arrival the crew found that FOLCB was burnt. There was no reportable ground fire. | Y56: - underground cable
A57: 17 | B57: 20 | C57: 2023-09-13 | D57: 04:00 | E57: -38.237102 | F57: 142.893102 | G57: 235 Terang-Framlingham Rd, Terang VIC 3264, Australia | H57: 33036073 | I57: TRG022 | J57: Low voltage AC (<1kV) | K57: Rural Long | L57: - connection box | M57: two phase | N57: Started in or originated from a distribution system | O57: within area delineated on plan LEGL./16-354 | P57: 4.6 | Q57: No rating | R57: 0.05 | S57: 0.23 | T57: INC-0022093 | U57: 20230914PWA_01 | V57: Crews were dispatched to a fault at the incident location. On arrival the crew found that the 2 phase FOLCB had overheated and had been completely destroyed by fire, there was no ground fire as there is gravel around the base of the pole. There were no reported injuries or third party damage. | Y57: - underground communications cable
A58: 17 | B58: 21 | C58: 2023-09-14 | D58: 19:31 | E58: -37.313197 | F58: 144.587974 | G58: 35 Robertson Dr, Newham VIC 3442, Australia | H58: 33030594 | I58: WND013 | J58: Low voltage AC (<1kV) | K58: Rural Long | L58: - connection box | M58: three phase | N58: Started in or originated from a distribution system | O58: within area delineated on plan LEGL./16-354 | P58: 4.6 | Q58: No rating | R58: 0.05 | S58: 0.23 | T58: INC-0022135 | U58: 20230915PWA_02 | V58: Report received of sparks coming from transformer pole opposite house. On arrival crew found a FOLCB on pole had caught fire and was totally destroyed. Fire brigade onsite. Molten material at base of pole but no ground fire | Y58: Poles
A59: 17 | B59: 22 | C59: 2023-09-17 | D59: 08:00 | E59: -37.762748 | F59: 144.809889 | G59: 17 Gray Ct, St Albans VIC 3021, Australia | H59: 33075672 | I59: SU012 | J59: Low voltage AC (<1kV) | K59: Urban | L59: - connection box | M59: single phase | N59: Started in or originated from a distribution system | O59: LBRA only | P59: 0.2 | Q59: No rating | R59: 0.05 | S59: 0.01 | T59: INC-0022166 | U59: 20230918PWA_02 | V59: emergency services report fuse box at POA has caught fire and melted Attending Powercor fault crew found that there had been a fire at the 1-phase POA attached to the customer’s fascia. The FOLCB and overhead service at the POA has been consumed by fire, and there is minor customer damage caused by the fire | Y59: - pole (concrete)
A60: 17 | B60: 23 | C60: 2023-09-24 | D60: 17:00 | E60: -37.976812 | F60: 144.080678 | G60: 418 Tall Tree Rd, Lethbridge VIC 3332, Australia | H60: 30251536 | I60: GHP011 | J60: Low voltage AC (<1kV) | K60: Rural Long | L60: - switch (disconnector/isolator) | M60: three phase | N60: Started in or originated from a distribution system | O60: within area delineated on plan LEGL./16-354 | P60: 4.6 | Q60: No rating | R60: 0.05 | S60: 0.23 | T60: INC-0022281 | U60: 20230925PWA_01 | V60: Vic fire reported ground fire Crew found 1 Ha fire ignited near base of pole and suspected issue with FSD box | Y60: - pole (steel)
A61: 17 | B61: 24 | C61: 2023-09-25 | D61: 15:28 | E61: -36.376596 | F61: 145.230791 | G61: 880 Merrigum-Ardmona Rd, Tatura VIC 3616, Australia | H61: 32187595 | I61: MNA014 | J61: Low voltage AC (<1kV) | K61: Rural Long | L61: - connection box | M61: three phase | N61: Started in or originated from a distribution system | O61: LBRA only | P61: 0.2 | Q61: No rating | R61: 0.05 | S61: 0.01 | T61: INC-0022290 | U61: 20230926PWA_03 | V61: crew attended a reported fault. Upon arrival crew made area safe and noted that the FOLCB on the pole at the dairy had caught fire and melted | Y61: - pole (wood)
A62: 17 | B62: 25 | C62: 2023-09-29 | D62: 16:44 | E62: -36.298797 | F62: 144.780927 | G62: 510 Graham Rd, Nanneella VIC 3561, Australia | H62: 30152685 | I62: KYM001 | J62: 22kV AC | K62: Rural Long | L62: - fuse (boric acid) | M62: three phase | N62: Started by any person, bird, reptile or other animal coming into contact with a distribution system | O62: LBRA only | P62: 0.2 | Q62: No rating | R62: 0.05 | S62: 0.01 | T62: INC-0022323 | U62: 20231002PWA_01 | V62: Fire comms reported fire around pole at above address. Crew arrived to find arcing at base of boric acid fuse and Ground fire at base of pole | Y62: Crossarms
A63: 17 | B63: 26 | C63: 2023-10-02 | D63: 23:55 | E63: -38.482905 | F63: 143.605038 | G63: 130 McDonalds Rd, Kawarren VIC 3249, Australia | H63: 30054861 | I63: CLC003 | J63: Low voltage AC (<1kV) | K63: Rural Long | L63: - connection box | M63: three phase | N63: Started in or originated from a distribution system | O63: within electric line construction area | P63: 19.8 | Q63: Moderate | R63: 0.334 | S63: 6.6132 | T63: INC-0022372 | U63: 20231004PWA_01 | V63: Upon arrival crew confirmed pole fire was out and that the LV Fuse was the cause of the fire and outage. FOLCB (fuse box) was brunt and melted, parts of it fell to the ground of the pole. Fire did not spread around the base of pole due to gravel. | Y63: - crossarm (wood)
A64: 17 | B64: 27 | C64: 2023-10-03 | D64: 19:00 | E64: -37.904886 | F64: 144.240516 | G64: 245-265 Durdidwarrah Rd, Anakie VIC 3213, Australia | H64: 32071133 | I64: GHP022 | J64: Low voltage AC (<1kV) | K64: Rural Long | L64: - connection box | M64: three phase | N64: Started in or originated from a distribution system | O64: within area delineated on plan LEGL./16-354 | P64: 4.6 | Q64: Moderate | R64: 0.334 | S64: 1.5364 | T64: INC-0022378 | U64: 20231004PWA_02 | V64: On arrival crew discovered the LV service out, burn marks on the pole from the FOLCB and small burn marks on the ground with melted components. There was no reported injuries. | Y64: - crossarm (steel)
A65: 17 | B65: 28 | C65: 2023-10-03 | D65: 18:16 | E65: -36.779531 | F65: 144.314831 | G65: 5 Chelsea Blvd, Strathdale VIC 3550, Australia | H65: 35097603 | I65: BGO013 | J65: Low voltage AC (<1kV) | K65: Rural Short | L65: - pole (steel) | M65: three phase | N65: Started in or originated from a distribution system | O65: LBRA only | P65: 0.2 | Q65: No rating | R65: 0.05 | S65: 0.01 | T65: INC-0022382 | U65: 20231004PWA_03 | V65: Reports from vic fire of light column sparking and smoking. On arrival, crew found failed circuit board behind public lighting column access panel. No ground fires or injuries. | Y65: - crossarm (other)
A66: 17 | B66: 29 | C66: 2023-10-03 | D66: 09:52 | E66: -37.149717 | F66: 143.109335 | G66: 44 C241, Crowlands VIC 3377, Australia | H66: 32089103 | I66: ART023 | J66: 22kV AC | K66: Rural Long | L66: - insulators | M66: three phase | N66: Started in or originated from a distribution system | O66: within area delineated on plan LEGL./16-354 | P66: 4.6 | Q66: Moderate | R66: 0.334 | S66: 1.5364 | T66: INC-0022390 | U66: 20231005PWA_01 | V66: The crew reported that HV crossarm snapped, split bolt on the ends of the blue phase which burnt through the wood. This dropped insulator into the LV conductor, causing possible HVI. Crew also reported approximately 270 customers out. Broken pieces of wooden cross arm on the ground. No ground fire. | Y66: Overhead assets
A67: 17 | B67: 30 | C67: 2023-10-04 | D67: 04:15 | E67: -38.296987 | F67: 144.091129 | G67: 20 Karamarra Rd, Gherang VIC 3240, Australia | H67: 32067612 | I67: WIN022 | J67: Low voltage AC (<1kV) | K67: Rural Long | L67: - connection box | M67: three phase | N67: Started in or originated from a distribution system | O67: within electric line construction area | P67: 19.8 | Q67: Moderate | R67: 0.334 | S67: 6.6132 | T67: INC-0022407 | U67: 20231005PWA_05 | V67: On arrival crew confirmed cause of fire to be LV FOLCB, with burns on the pole around it and at the base of pole, with melted components on the ground. Wet weather seems to have eliminated the fire around the base of pole. | Y67: - capacity balancing units
A68: 17 | B68: 31 | C68: 2023-10-04 | D68: 07:22 | E68: -37.820662 | F68: 144.785854 | G68: 183 State Route 40, Laverton North VIC 3026, Australia | H68: 84740325 | I68: LVN023 | J68: 22kV AC | K68: Urban | L68: - switch (any other type) | M68: three phase | N68: Started in or originated from a distribution system | O68: LBRA only | P68: 0.2 | Q68: No rating | R68: 0.05 | S68: 0.01 | T68: INC-0022414 | U68: 20231006PWA_02 | V68: customer reported large bang and sparking on corner of Fitzgerald/William Angliss Drive crew found connection to 22kV switchgear damaged by overheating. | Y68: - connector / termination
A69: 17 | B69: 32 | C69: 2023-10-05 | D69: 21:14 | E69: -38.352613 | F69: 141.607623 | G69: 4 Glenelg St, Portland VIC 3305, Australia | H69: 33056452 | I69: PLD004 | J69: Low voltage AC (<1kV) | K69: Rural Short | L69: - lamps (major road) | M69: single phase | N69: Started in or originated from a distribution system | O69: LBRA only | P69: 0.2 | Q69: No rating | R69: 0.05 | S69: 0.01 | T69: INC-0022463 | U69: 20231010PWA_01 | V69: Crew restoring supply after replacing faulty FSD identified watchman lighting had caught fire. The ignition was believed to have occurred at the external PE control | Y69: - dropper / bridge
A70: 17 | B70: 33 | C70: 2023-10-10 | D70: 09:12 | E70: -37.48829 | F70: 144.590997 | G70: 42B Aitken St, Gisborne VIC 3437, Australia | H70: 30031820 | I70: GSB011 | J70: Low voltage AC (<1kV) | K70: Rural Short | L70: - dropper / bridge | M70: three phase | N70: Started in or originated from a distribution system | O70: LBRA only | P70: 0.2 | Q70: No rating | R70: 0.05 | S70: 0.01 | T70: INC-0022498 | U70: 20231012PWA_04 | V70: LV Bridge from ABC to Isolator was sparking arcing until parted sent molten plastic to ground. Crews found no presence of fire only some charred insulation at base of pole | Y70: - guy wire
A71: 17 | B71: 34 | C71: 2023-10-17 | D71: 21:46 | E71: -37.731814 | F71: 144.576397 | G71: 2 Waterway Blvd, Weir Views VIC 3338, Australia | H71: 30104930 | I71: MLN032 | J71: Low voltage AC (<1kV) | K71: Rural Short | L71: - lamps (major road) | M71: single phase | N71: Started in or originated from a distribution system | O71: HBRA only | P71: 1 | Q71: No rating | R71: 0.05 | S71: 0.05 | T71: INC-0022582 | U71: 20231018PWA_01 | V71: Small grass fire extinguished by CFA. | Y71: - insulator tie wires / connections
A72: 17 | B72: 35 | C72: 2023-10-17 | D72: 07:52 | E72: -38.751214 | F72: 143.665977 | G72: 17 Murray St, Apollo Bay VIC 3233, Australia | H72: 30280603 | I72: CLC013 | J72: 22kV AC | K72: Rural Long | L72: - dropper / bridge | M72: three phase | N72: Started in or originated from a distribution system | O72: LBRA only | P72: 0.2 | Q72: No rating | R72: 0.05 | S72: 0.01 | T72: INC-0026285 | U72: 20240701PWA_08 | V72: Cust reported smoke and flame coming from outside property. Flame was orange was constant but has now stopped. Pole was also making a buzzing noise Crew found deteriorated HV insulated leads | Y72: - insulators
A73: 17 | B73: 36 | C73: 2023-10-19 | D73: 15:13 | E73: -37.680968 | F73: 144.67308 | G73: 1498 Melton Hwy, Plumpton VIC 3335, Australia | H73: 33075166 | I73: MLN021 | J73: Low voltage AC (<1kV) | K73: Rural Short | L73: - switch (disconnector/isolator) | M73: three phase | N73: Started in or originated from a distribution system | O73: HBRA only | P73: 1 | Q73: Moderate | R73: 0.334 | S73: 0.334 | T73: INC-0022616 | U73: 20231020PWA_01 | V73: Crew Replaced faulty transformer. On energisation sparks from emanated from faultily isolator igniting grass stubble at base of pole. Fire self extinquished. There was no reported injuries. | Y73: - tower
A74: 17 | B74: 37 | C74: 2023-10-24 | D74: 20:28 | E74: -38.162018 | F74: 144.42884 | G74: 72 Point Henry Rd, Moolap VIC 3224, Australia | H74: 32076475 | I74: GLE031 | J74: 22kV AC | K74: Rural Short | L74: - pole (wood) | M74: three phase | N74: Started by any other thing forming part of or coming into contact with a distribution system | O74: LBRA only | P74: 0.2 | Q74: Moderate | R74: 0.334 | S74: 0.0668 | T74: INC-0022691 | U74: 20231026PWA_01 | V74: Car hit pole and snapped it. It broke the guy which made contact with the LV and fence causing a ground fire. there was a ground fire and fatality(non electrical) | Y74: - traction lines
A75: 17 | B75: 38 | C75: 2023-10-30 | D75: 13:17 | E75: -35.659218 | F75: 144.114356 | G75: 2146 Kerang-Koondrook Rd, Koondrook VIC 3580, Australia | H75: 33017321 | I75: KGT003 | J75: 22kV AC | K75: Rural Long | L75: - insulators | M75: three phase | N75: Started by any person, bird, reptile or other animal coming into contact with a distribution system | O75: LBRA only | P75: 0.2 | Q75: High | R75: 0.678 | S75: 0.1356 | T75: INC-0022738 | U75: 20231031PWA_02 | V75: Bird induced flashover between HV conductor and metal crossarm. Molten particles fell to ground and started a grass fire. There were no reported injuries | Y75: Underground assets
A76: 17 | B76: 39 | C76: 2023-11-02 | D76: 04:09 | E76: -36.038471 | F76: 145.280664 | G76: 682 Centre Rd, Waaia VIC 3637, Australia | H76: 33081659 | I76: NKA006 | J76: 22kV AC | K76: Rural Long | L76: - overhead conductor (bare; all aluminium conductor) | M76: three phase | N76: Started in or originated from a distribution system | O76: LBRA only | P76: 0.2 | Q76: Moderate | R76: 0.334 | S76: 0.0668 | T76: INC-0022811 | U76: 20231103PWA_02 | V76: Report received of grass fire and conductor on ground. On arrival crew found centre phase conductor had failed striking the ground and causing a grass fire. There was no reported injuries. | Y76: - LV pillar
A77: 17 | B77: 40 | C77: 2023-11-04 | D77: 19:19 | E77: -38.135371 | F77: 144.318001 | G77: 8 Ingrid Ct, Herne Hill VIC 3218, Australia | H77: 30546526 | I77: GL014 | J77: 22kV AC | K77: Urban | L77: - fuse (powder filled) | M77: three phase | N77: Started in or originated from a distribution system | O77: LBRA only | P77: 0.2 | Q77: Moderate | R77: 0.334 | S77: 0.0668 | T77: INC-0022846 | U77: 20231108PWA_01 | V77: Pole fire start no ground fire, tracking. | Y77: - services pit
A78: 17 | B78: 41 | C78: 2023-11-04 | D78: 19:08 | E78: -37.342275 | F78: 144.14765 | G78: 6 Daly St, Daylesford VIC 3460, Australia | H78: 30148312 | I78: BAN008 | J78: Low voltage AC (<1kV) | K78: Rural Long | L78: - overhead conductor (ABC) | M78: three phase | N78: Started in or originated from a distribution system | O78: LBRA only | P78: 0.2 | Q78: Moderate | R78: 0.334 | S78: 0.0668 | T78: INC-0022847 | U78: 20231108PWA_02 | V78: The fire brigade extinguished a small fire at the base of the pole LIS: 945221. | Y78: Transformers
A79: 17 | B79: 42 | C79: 2023-11-07 | D79: 21:39 | E79: -37.787539 | F79: 144.803282 | G79: 212 Glengala Rd, Sunshine West VIC 3020, Australia | H79: 32164858 | I79: SU035 | J79: 22kV AC | K79: Urban | L79: - switch (any other type) | M79: three phase | N79: Started by lightning striking a distribution system or a part of a distribution system | O79: LBRA only | P79: 0.2 | Q79: Moderate | R79: 0.334 | S79: 0.0668 | T79: INC-0026334 | U79: 20240703PWA_02 | V79: Cust adv pole opposite this address had flames up the top of it for about 5 mins, no longer on fire. Strong electrical burning smell. Unsure if cause of outage Attending crew found damaged gas switch and hv isolators damaged by lightning. | Y79: - transformer (pole mounted)
A80: 17 | B80: 43 | C80: 2023-11-08 | D80: 21:00 | E80: -37.830749 | F80: 144.843228 | G80: Unit 7/414 Blackshaws Rd, Altona North VIC 3025, Australia | H80: 30114530 | I80: BLTS-TYA | J80: 66kV AC | K80: Urban | L80: - pole (wood) | M80: three phase | N80: Started by lightning striking a distribution system or a part of a distribution system | O80: LBRA only | P80: 0.2 | Q80: Moderate | R80: 0.334 | S80: 0.0668 | T80: INC-0022881 | U80: 20231109PWA_01 | V80: 66 KV Pole fire potentially due to lightning, fire brigade on site. Insulators detached, 66 KV hanging low. No ground fire or injuries reported. | Y80: - transformer (kiosk mounted)
A81: 17 | B81: 44 | C81: 2023-11-10 | D81: 13:40 | E81: -36.307032 | F81: 144.762635 | G81: 564 Christie Rd, Nanneella VIC 3561, Australia | H81: 32182720 | I81: KYM001 | J81: 22kV AC | K81: Rural Long | L81: - crossarm (wood) | M81: three phase | N81: Started in or originated from a distribution system | O81: LBRA only | P81: 0.2 | Q81: Moderate | R81: 0.334 | S81: 0.0668 | T81: INC-0022925 | U81: 20231113PWA_02 | V81: CFA requested attendance to fire and wire down at intersection of Christie Road and Bennett Road, Fairy Dell (Rochester) Crew found termination crossarm at LIS 22954 Wiloglen P4 broken at disk insulator causing wire to fall to ground causing fire to paddock (180m x116m) roughly 40 Large round Hay bales and 100m of fencing. | Y81: - transformer (ground outdoor mounted)
A82: 17 | B82: 45 | C82: 2023-11-12 | D82: 16:42 | E82: -35.253175 | F82: 141.59532 | G82: 617 Boinka South Rd, Boinka VIC 3490, Australia | H82: 32141529 | I82: OYN001 | J82: 12.7kV AC (SWER) | K82: Rural Long | L82: - pole (wood) | M82: single wire earth return (SWER) | N82: Started by any other thing forming part of or coming into contact with a distribution system | O82: HBRA only | P82: 1 | Q82: High | R82: 0.678 | S82: 0.678 | T82: INC-0022939 | U82: 20231113PWA_05 | V82: Header/Tractor hit SWER pole knocking it over, starting 10m x 10m grass fire, protection operated | Y82: - transformer (indoor chamber mounted)
A83: 17 | B83: 46 | C83: 2023-11-14 | D83: 07:44 | E83: -36.482274 | F83: 142.614612 | G83: Knapdale, 5846 Stawell-Warracknabeal Rd, Minyip VIC 3392, Australia | H83: 30084530 | I83: STL006 | J83: 22kV AC | K83: Rural Long | L83: - crossarm (wood) | M83: three phase | N83: Started in or originated from a distribution system | O83: within area delineated on plan LEGL./16-354 | P83: 4.6 | Q83: Moderate | R83: 0.334 | S83: 1.5364 | T83: INC-0022968 | U83: 20231114PWA_01 | V83: T-off crossarm fire. Resulted in fallen 22kV conductor on the ground. No ground fire. Protection operated. | Y83: - transformer (any other type)
A84: 17 | B84: 47 | C84: 2023-11-14 | D84: 07:52 | E84: -36.253366 | F84: 142.385056 | G84: 9 C234, Warracknabeal VIC 3393, Australia | H84: 32115450 | I84: HSM005 | J84: 22kV AC | K84: Rural Long | L84: - crossarm (wood) | M84: three phase | N84: Started in or originated from a distribution system | O84: LBRA only | P84: 0.2 | Q84: Moderate | R84: 0.334 | S84: 0.0668 | T84: INC-0022972 | U84: 20231114PWA_02 | V84: HV crossarm fire due to dust on insulator. No ground fire. No photos provided by crew. | Y84: - measurement transformer (current transformer)
A85: 17 | B85: 48 | C85: 2023-11-14 | D85: 08:53 | E85: -36.51258 | F85: 142.3362 | G85: 2695 Henty Hwy, Jung VIC 3401, Australia | H85: 32094206 | I85: HSM005 | J85: 22kV AC | K85: Rural Long | L85: - crossarm (wood) | M85: three phase | N85: Started in or originated from a distribution system | O85: HBRA only | P85: 1 | Q85: Moderate | R85: 0.334 | S85: 0.334 | T85: INC-0022973 | U85: 20231114PWA_03 | V85: Wood crossarm fire has resulted in 22kV conductor and attached insulator falling off the crossarm and hanging approx. 3 feet of a metal fence. (Protection did not operate). There was no shocks. Pole top fire only - no ground fire. | Y85: - measurement transformer (voltage transformer)
A86: 17 | B86: 49 | C86: 2023-11-16 | D86: 23:40 | E86: -36.75945 | F86: 144.225299 | G86: 12 Lupson Ct, Maiden Gully VIC 3551, Australia | H86: 33012057 | I86: BET006 | J86: 22kV AC | K86: Rural Short | L86: - overhead conductor (bare; all aluminium conductor) | M86: three phase | N86: Started by any tree, or part of a tree, falling upon or coming into contact with a distribution system | O86: LBRA only | P86: 0.2 | Q86: High | R86: 0.678 | S86: 0.1356 | T86: INC-0023016 | U86: 20231120PWA_01 | V86: Fire comms reported fire associated with Powercor assets at the incident location. Bendigo fault crew found that large tree had leaned onto 22kV conductors of the BET006 feeder in proximity to LIS 429058. Tree base is located 10M from line. Contact with HV resulted in several branches burning, several recloses on feeder CB before controlled interruption to trim offending branches. No ground fire as a result on the incident. | Y86: - measurement transformer (capacitive voltage transformer)
A87: 17 | B87: 50 | C87: 2023-11-19 | D87: 07:04 | E87: -37.53285 | F87: 144.055048 | G87: 250 Ormond Rd, Springbank VIC 3352, Australia | H87: 33003778 | I87: BAN003 | J87: Low voltage AC (<1kV) | K87: Rural Long | L87: - connection box | M87: three phase | N87: Started in or originated from a distribution system | O87: within area delineated on plan LEGL./16-354 | P87: 4.6 | Q87: Moderate | R87: 0.334 | S87: 1.5364 | T87: INC-0023025 | U87: 20231120PWA_03 | V87: Emergency services reported that a pole fire caused a grass fire. Attending crew reported that the FOLCB had failed, causing the grass to catch fire. Burn area <1m2. Fire was extinguished prior to the crew's attendance. | Y87: Fuses and switchgear
A88: 17 | B88: 51 | C88: 2023-11-22 | D88: 20:43 | E88: -36.411973 | F88: 145.090136 | G88: 375 Brewer Rd, Cooma VIC 3616, Australia | H88: 30247157 | I88: SHP014 | J88: 22kV AC | K88: Rural Long | L88: - overhead conductor (bare; steel) | M88: three phase | N88: Started by any tree, or part of a tree, falling upon or coming into contact with a distribution system | O88: LBRA only | P88: 0.2 | Q88: High | R88: 0.678 | S88: 0.1356 | T88: INC-0023104 | U88: 20231124PWA_02 | V88: Part supply notifications from customers resulted in Shepparton fault crew undertaking a line patrol, discovering a large tree have come down over 22kV conductors at the incident location. Crew found large tree which failed at the root plate coming down over 22kV conductors between P8 Cornish and P9 Cornish, tree base was 15.0M from line. Ground fire resulted from downed conductors, 6M x 8M in size, which largely self extinguished however crew called CFA to come and douse to ensure any embers would not reignite the crop the fire occurred in. | Y88: - fuse (boric acid)
A89: 17 | B89: 52 | C89: 2023-11-23 | D89: 07:14 | E89: -37.655349 | F89: 144.450621 | G89: 20 Lerderderg Park Rd, Merrimu VIC 3340, Australia | H89: 33075941 | I89: MLN022 | J89: 22kV AC | K89: Rural Short | L89: - overhead conductor (bare; steel) | M89: three phase | N89: Started by any other thing forming part of or coming into contact with a distribution system | O89: HBRA only | P89: 1 | Q89: Moderate | R89: 0.334 | S89: 0.334 | T89: INC-0023090 | U89: 20231123PWA_02 | V89: CFA reported truck pulled wires down, has started a grass fire at cnr gisborne rd & albert st - attending crew found an overhead service and HV conductors had been brought down and a small ground fire ensued. | Y89: - fuse (EDO fuse)
A90: 17 | B90: 53 | C90: 2023-11-24 | D90: 14:25 | E90: -38.383115 | F90: 142.482136 | G90: 169 Koroit St, Warrnambool VIC 3280, Australia | H90: 34034281 | I90: WBL008 | J90: Low voltage AC (<1kV) | K90: Urban | L90: - switch (disconnector/isolator) | M90: three phase | N90: Started in or originated from a distribution system | O90: LBRA only | P90: 0.2 | Q90: Moderate | R90: 0.334 | S90: 0.0668 | T90: INC-0023119 | U90: 20231127PWA_02 | V90: Fire Coms advised 3 phase power box on side of building on fire. Crew found an open point facade mounted FSD had caught fire and CFA had extinguished. Local media in attendance | Y90: - fuse (Fault Tamer)
A91: 17 | B91: 54 | C91: 2023-11-24 | D91: 17:57 | E91: -35.944904 | F91: 144.373429 | G91: 104 Gunbower Island Rd, Gunbower VIC 3566, Australia | H91: 32034925 | I91: CHA005 | J91: 22kV AC | K91: Rural Long | L91: - overhead conductor (bare; steel) | M91: three phase | N91: Started by any tree, or part of a tree, falling upon or coming into contact with a distribution system | O91: LBRA only | P91: 0.2 | Q91: Moderate | R91: 0.334 | S91: 0.0668 | T91: INC-0023123 | U91: 20231127PWA_03 | V91: Report of tree fire due to contact with HV. Crew arrived to find tree branches had made contact with HV bare conductor. | Y91: - fuse (powder filled)
A92: 17 | B92: 55 | C92: 2023-11-28 | D92: 18:05 | E92: -38.230015 | F92: 142.800919 | G92: 260 Dairy Ln, Terang VIC 3264, Australia | H92: 30555030 | I92: TRG022 | J92: Low voltage AC (<1kV) | K92: Rural Long | L92: - connection box | M92: three phase | N92: Started in or originated from a distribution system | O92: within area delineated on plan LEGL./16-354 | P92: 4.6 | Q92: Moderate | R92: 0.334 | S92: 1.5364 | T92: INC-0026342 | U92: 20240703PWA_05 | V92: customer advised Smaller box below the TF was on fire, but now out. | Y92: - fuse (any other type)
A93: 17 | B93: 56 | C93: 2023-11-29 | D93: 15:16 | E93: -36.240294 | F93: 142.397524 | G93: Ross St, Warracknabeal VIC 3393, Australia | H93: 33050983 | I93: HSM003 | J93: Low voltage AC (<1kV) | K93: Rural Long | L93: - switch (disconnector/isolator) | M93: three phase | N93: Started in or originated from a distribution system | O93: HBRA only | P93: 1 | Q93: High | R93: 0.678 | S93: 0.678 | T93: INC-0023191 | U93: 20231130PWA_03 | V93: Fire services advised of a fire at the location. Upon arrival the crew found that blue phase of LV isolator was burnt and a ground fire near the base of the pole of approximately 64m2 (8 x 8). | Y93: - circuit breaker
A94: 17 | B94: 57 | C94: 2023-11-29 | D94: 20:59 | E94: -37.65581 | F94: 144.601658 | G94: Cnr Gisborne Melton Rd and Nuspan Ct, Kurunjang | H94: 30105497 | I94: MLN012 | J94: Low voltage AC (<1kV) | K94: Rural Short | L94: - luminaires (major road) | M94: single phase | N94: Started in or originated from a distribution system | O94: LBRA only | P94: 0.2 | Q94: Moderate | R94: 0.334 | S94: 0.0668 | T94: INC-0023204 | U94: 20231201PWA_01 | V94: Report received of street light on fire with fire brigade on scene to address matters. Upon arrival the fault crew found that the light head cover of the 150W HPS luminaire attached to the outreach bracket at substation pole "GISB MLTN-NUSPAN" on LIS-933488 had melted as a result of the incident. | Y94: - switch (disconnector/isolator)
A95: 17 | B95: 58 | C95: 2023-12-02 | D95: 10:31 | E95: -37.820563 | F95: 144.786473 | G95: 183 State Route 40, Laverton North VIC 3026, Australia | H95: 30241121 | I95: LVN034 | J95: Low voltage AC (<1kV) | K95: Urban | L95: - lamps (major road) | M95: single phase | N95: Started in or originated from a distribution system | O95: LBRA only | P95: 0.2 | Q95: No rating | R95: 0.05 | S95: 0.01 | T95: INC-0023253 | U95: 20231204PWA_02 | V95: Vic Roads reported a pole fire at Corner of Gilbertson Rd and Fitzgerald Rd, LAVERTON. A Powercor employee was on site, he advised that the pole was a VicRoads pole and the public lighting cable was damaged. On arrival, the Faults crew found that the wiring inside the public lighting Pole 998858 (JUP) had caught fire and the P/L cable, fuses, traffic lights panel and the wiring had melted. The crew advised that the cables sparking and fire was most likely caused by the raining water entering inside the pole. The fire was contained inside the pole and extinguished by itself. | Y95: - switch (earth)
A96: 17 | B96: 59 | C96: 2023-12-02 | D96: 04:04 | E96: -38.328233 | F96: 142.36602 | G96: Tower Hill Park Boundary, Entrance Rd, Tower Hill VIC 3283, Australia | H96: 30135013 | I96: KRT022 | J96: 22kV AC | K96: Rural Short | L96: - crossarm (wood) | M96: three phase | N96: Started in or originated from a distribution system | O96: within area delineated on plan LEGL./16-354 | P96: 4.6 | Q96: Moderate | R96: 0.334 | S96: 1.5364 | T96: INC-0023254 | U96: 20231204PWA_03 | V96: Crew patrolling line to investigate an outage found crossarm had burnt and conductor fallen to ground. | Y96: - switch (FuseSaver)
A97: 17 | B97: 60 | C97: 2023-12-04 | D97: 19:02 | E97: -37.773009 | F97: 144.809492 | G97: 4C Carrington Dr, Albion VIC 3020, Australia | H97: 30116083 | I97: SU022 | J97: 22kV AC | K97: Urban | L97: - connector / termination | M97: three phase | N97: Started in or originated from a distribution system | O97: LBRA only | P97: 0.2 | Q97: Moderate | R97: 0.334 | S97: 0.0668 | T97: INC-0023266 | U97: 20231205PWA_01 | V97: Vic Fire reported overhead lines burnt on a pole outside 11 Carrington Drive, Sunshine and advised that there is a Transformer nearby. On arrival the Powercor crew found that IPC’s on pole LIS-26132 had overheated and the sparking resulted in a ground fire inside customer’s property at 13 Carrington Drive. The fire brigade was on site and extinguished the fire before the crew arrived. | Y97: - switch (any other type)
A98: 17 | B98: 61 | C98: 2023-12-07 | D98: 06:47 | E98: -36.427378 | F98: 145.320979 | G98: 275 Pyke Rd, Mooroopna VIC 3629, Australia | H98: 33091691 | I98: MNA021 | J98: 22kV AC | K98: Rural Short | L98: - fuse (EDO fuse) | M98: three phase | N98: Started by any person, bird, reptile or other animal coming into contact with a distribution system | O98: LBRA only | P98: 0.2 | Q98: Moderate | R98: 0.334 | S98: 0.0668 | T98: INC-0023337 | U98: 20231208PWA_03 | V98: A fruit bat has caused a flashover between EDO fuse flex and bracket. This has caused burning particles to fall to the ground and start a very small grass fire | Y98: SCADA, network control and protection systems
A99: 17 | B99: 62 | C99: 2023-12-07 | D99: 14:10 | E99: -38.16476 | F99: 144.579386 | G99: 20 Hutchinson Ct, Drysdale VIC 3222, Australia | H99: 30067546 | I99: DDL021 | J99: Low voltage AC (<1kV) | K99: Rural Short | L99: - connection box | M99: three phase | N99: Started in or originated from a distribution system | O99: HBRA only | P99: 1 | Q99: Moderate | R99: 0.334 | S99: 0.334 | T99: INC-0023340 | U99: 20231208PWA_04 | V99: Junction Box failure started pole fire which then resulted in a grass fire below the pole. | Y99: - audio frequency load controller (AFLC)
A100: 17 | B100: 63 | C100: 2023-12-08 | D100: 14:13 | E100: -35.990475 | F100: 144.318705 | G100: 912 Gunbower-Pyramid Rd, Gunbower VIC 3566 | H100: 32038643 | I100: CHA005 | J100: 22kV AC | K100: Rural Long | L100: - overhead conductor (bare; steel) | M100: three phase | N100: Started in or originated from a distribution system | O100: HBRA only | P100: 1 | Q100: High | R100: 0.678 | S100: 0.678 | T100: INC-0023348 | U100: 20231208PWA_06 | V100: Initial description is Broken wires causing pole fire and grass fire. | Y100: - arc suppresion coil
A101: 17 | B101: 64 | C101: 2023-12-11 | D101: 14:10 | E101: -35.975926 | F101: 142.410091 | G101: 3155 Henty Hwy, Beulah VIC 3395, Australia | H101: 30143277 | I101: HSM003 | J101: 22kV AC | K101: Rural Long | L101: - pole (wood) | M101: three phase | N101: Started in or originated from a distribution system | O101: HBRA only | P101: 1 | Q101: Extreme | R101: 2.272 | S101: 2.272 | T101: INC-0023360 | U101: 20231212PWA_01 | V101: Fire comms reported pole fire / started grass fire - on Henty highway. Attending crew found pole had broken mid section with the top section falling to ground. a small ground fire occurred. | Y101: - automatic circuit recloser (ACR)
A102: 17 | B102: 65 | C102: 2023-12-12 | D102: 19:24 | E102: -37.253152 | F102: 144.42446 | G102: 163 Harts Ln, Kyneton VIC 3444, Australia | H102: 33030133 | I102: WND014 | J102: 22kV AC | K102: Rural Short | L102: - surge diverter | M102: three phase | N102: Started in or originated from a distribution system | O102: within area delineated on plan LEGL./16-354 | P102: 4.6 | Q102: Moderate | R102: 0.334 | S102: 1.5364 | T102: INC-0023388 | U102: 20231213PWA_01 | V102: Firecomms reported ground fire due to Powercor asset at the incident location. Upon arrival fault crew found that a porcelain Surge diverter had failed, resulting in the live end making contact with transformer tank and the resultant arc dropped molten material to the ground. | Y102: - communications linear assets
A103: 17 | B103: 66 | C103: 2023-12-12 | D103: 20:58 | E103: -38.378987 | F103: 142.477783 | G103: 67 Henna St, Warrnambool VIC 3280, Australia | H103: 30137324 | I103: WBL010 | J103: Low voltage AC (<1kV) | K103: Urban | L103: - switch (disconnector/isolator) | M103: three phase | N103: Started in or originated from a distribution system | O103: LBRA only | P103: 0.2 | Q103: Moderate | R103: 0.334 | S103: 0.0668 | T103: INC-0026440 | U103: 20240709PWA_01 | V103: Powercor was advised of a Power box on pole on fire outside 67 HENNA STREET,WARRNAMBOOL, VIC,3280 | Y103: - communications network assets
A104: 17 | B104: 67 | C104: 2023-12-13 | D104: 10:01 | E104: -36.025496 | F104: 145.245377 | G104: 222 Evans Rd, Nathalia VIC 3638, Australia | H104: 30600638 | I104: NKA006 | J104: 22kV AC | K104: Rural Long | L104: - fuse (EDO fuse) | M104: three phase | N104: Started in or originated from a distribution system | O104: LBRA only | P104: 0.2 | Q104: Extreme | R104: 2.272 | S104: 0.4544 | T104: INC-0023420 | U104: 20231214PWA_03 | V104: Firecomms reported a pole fire Attending crew found a HV fuse had malfunctioned and a ground fire developed | Y104: - communications site infrastructure
A105: 17 | B105: 68 | C105: 2023-12-18 | D105: 18:50 | E105: -37.685211 | F105: 144.085205 | G105: 49 Magnus Ln, Bungal VIC 3334, Australia | H105: 33004267 | I105: BAN003 | J105: Low voltage AC (<1kV) | K105: Rural Long | L105: - connection box | M105: single phase | N105: Started in or originated from a distribution system | O105: within area delineated on plan LEGL./16-354 | P105: 4.6 | Q105: Moderate | R105: 0.334 | S105: 1.5364 | T105: INC-0023472 | U105: 20231219PWA_01 | V105: Single phase fuse box burnt, fell to the ground and started small grass fire. | Y105: - field devices
A106: 17 | B106: 69 | C106: 2023-12-23 | D106: 10:12 | E106: -35.720353 | F106: 143.919742 | G106: 27 Ninth Street, Kerang 3579 | H106: 32036926 | I106: KGT002 | J106: 22kV AC | K106: Rural Short | L106: - pole (wood) | M106: three phase | N106: Started by any other thing forming part of or coming into contact with a distribution system | O106: LBRA only | P106: 0.2 | Q106: Moderate | R106: 0.334 | S106: 0.0668 | T106: INC-0023570 | U106: 20231228PWA_01 | V106: Car hit power pole taking down pole with HV, and LV. Pole, crossarms as well as crossarms on adjacent poles damaged. HV and LV conductors came down together. Feeder tripped. Incident cause a small grass fire 100-150msq. Driver taken to hospital by ambulance | Y106: - local network wiring assets
A107: 17 | B107: 70 | C107: 2023-12-24 | D107: 14:10 | E107: -34.761342 | F107: 142.971523 | G107: 1633 MURRAY VALLEY HIGHWAY Lake Powell | H107: 30245132 | I107: BBD013 | J107: 22kV AC | K107: Rural Short | L107: - fuse (boric acid) | M107: three phase | N107: Started by any person, bird, reptile or other animal coming into contact with a distribution system | O107: LBRA only | P107: 0.2 | Q107: High | R107: 0.678 | S107: 0.1356 | T107: INC-0023575 | U107: 20231228PWA_05 | V107: Bat has landed on HV line and caused a fault on BA fuse unit over night. Customer noticed outage in the morning. Approx. 150msq grassfire started as a result of the fault | Y107: - master station assets
A108: 17 | B108: 71 | C108: 2023-12-24 | D108: 12:15 | E108: -38.102829 | F108: 143.638001 | G108: 45 Reddies Rd, Cressy VIC 3322, Australia | H108: 30052740 | I108: CLC006 | J108: 22kV AC | K108: Rural Long | L108: - pole (wood) | M108: three phase | N108: Started by lightning striking a distribution system or a part of a distribution system | O108: within area delineated on plan LEGL./16-354 | P108: 4.6 | Q108: Moderate | R108: 0.334 | S108: 1.5364 | T108: INC-0023579 | U108: 20231228PWA_08 | V108: Emergency services were requested to attend to a pole hit by lightning, six (6) poles North of the intersection of Reddies Rd and Barpinba Rd, Cressy. This event started a grassfire at the base of pole 148, On arrival crew noted the fire was extinguished, assumed to be by emergency service, whom were not at the scene. Burn marks on the side of the pole top to bottom and around the base of the pole. Fire effected area is grass in the road reserve, approx.10m radius around pole unknown if network involved or pole in vicinity of strike TBC | Y108: - neutral earthing resistor
A109: 17 | B109: 72 | C109: 2023-12-25 | D109: 05:36 | E109: -36.426454 | F109: 144.993748 | G109: 347 Morrissey Rd, Stanhope VIC 3623, Australia | H109: 30145083 | I109: SHP012 | J109: 22kV AC | K109: Rural Long | L109: - transformer (pole mounted) | M109: three phase | N109: Started by lightning striking a distribution system or a part of a distribution system | O109: LBRA only | P109: 0.2 | Q109: Moderate | R109: 0.334 | S109: 0.0668 | T109: INC-0026443 | U109: 20240709PWA_03 | V109: Customers advised transformer on pole at rd side was on fire, cfa attended and put fire out, fuses are down on pole also, supply is off. Crew found transformer damaged by lightning | Y109: - oil-filled circuit recloser (OCR)
A110: 17 | B110: 73 | C110: 2023-12-25 | D110: 07:26 | E110: -36.291255 | F110: 144.56285 | G110: 84 Vise Rd, Bamawm VIC 3561, Australia | H110: 31025704 | I110: SHP012 | J110: Low voltage AC (<1kV) | K110: Rural Long | L110: - connection box | M110: three phase | N110: Started by lightning striking a distribution system or a part of a distribution system | O110: LBRA only | P110: 0.2 | Q110: Moderate | R110: 0.334 | S110: 0.0668 | T110: INC-0026444 | U110: 20240709PWA_04 | V110: customers reported outage attending crew found LV box and leads burnt after lightning struck | Y110: - rapid earth fault current limiter (REFCL)
A111: 17 | B111: 74 | C111: 2023-12-26 | D111: 14:36 | E111: -37.667206 | F111: 144.583848 | G111: 2 Thrice Ln, Kurunjang VIC 3337, Australia | H111: 30119541 | I111: MLN032 | J111: 22kV AC | K111: Rural Short | L111: - overhead conductor (bare; steel) | M111: three phase | N111: Started by lightning striking a distribution system or a part of a distribution system | O111: LBRA only | P111: 0.2 | Q111: Moderate | R111: 0.334 | S111: 0.0668 | T111: INC-0023572 | U111: 20231228PWA_03 | V111: Lighting Struck an 22kV OH Line. On arrival to site the PCA Faults Crew advised that a Lightning Strike has resulted in HV OH Conductor falling to the ground below. Two pole type substations were ignited and a further two were destroyed. | Y111: - surge diverter
A112: =COUNTA(C112:O112,Q112,T112:V112) -> 17 | B112: 75 | C112: 2023-12-26 | D112: 16:47 | E112: -35.242522 | F112: 143.485071 | G112: 1344 Murray Valley Hwy, Beverford VIC 3590, Australia | H112: 32160709 | I112: SHL004 | J112: Low voltage AC (<1kV) | K112: Rural Short | L112: - fuse (any other type) | M112: single phase | N112: Started in or originated from a distribution system | O112: LBRA only | P112: =IF(O112="","",IF(O112="LBRA only",0.2,IF(O112="HBRA only",1,IF(O112="within electric line construction area",19.8,IF(O112="within area delineated on plan LEGL./16-354",4.6,""))))) -> 0.2 | Q112: Moderate | R112: =IF(Q112="","",IF(Q112="No rating",0.05,IF(Q112="Moderate",0.334,IF(Q112="High",0.678,IF(Q112="Extreme",2.272,4.754))))) -> 0.334 | S112: =IF(OR(P112="",R112=""),"",IF(AND(O112="within electric line construction area",Q112="No forecast"),1,P112*R112)) -> 0.0668 | T112: INC-0023577 | U112: 20231228PWA_07 | V112: Customer reported burnt out switchboard. Upon arrival crew found meter panel burnt and had self-extinguished. | Y112: - voltage regulator
A113: 17 | B113: 76 | C113: 2023-12-27 | D113: 00:49 | E113: -36.269376 | F113: 145.02959 | G113: 899 Matheson Rd, Kyvalley VIC 3621, Australia | H113: 30146221 | I113: KYM004 | J113: 22kV AC | K113: Rural Long | L113: - fuse (EDO fuse) | M113: three phase | N113: Started in or originated from a distribution system | O113: LBRA only | P113: 0.2 | Q113: Moderate | R113: 0.334 | S113: 0.0668 | T113: INC-0023576 | U113: 20231228PWA_06 | V113: Emergency services requested Powercor attendance at a grass fire near pole Upon arrival crew found EDO fuse above origin of fire had operated. | Y113: Public lighting
A114: 17 | B114: 77 | C114: 2023-12-27 | D114: 14:04 | E114: -38.72601 | F114: 143.707822 | G114: 1 Motts Ln, Skenes Creek VIC 3233, Australia | H114: 30562684 | I114: CLC013 | J114: 22kV AC | K114: Rural Long | L114: - dropper / bridge | M114: three phase | N114: Started in or originated from a distribution system | O114: within area delineated on plan LEGL./16-354 | P114: 4.6 | Q114: Moderate | R114: 0.334 | S114: 1.5364 | T114: INC-0023580 | U114: 20231228PWA_09 | V114: Call reporting burning of a pole top asset at the address. On arrival, Crew confirmed burnt HV dropper lead to Transformer on Pole 594E | Y114: - brackets (major road)
A115: 17 | B115: 78 | C115: 2024-01-01 | D115: 06:55 | E115: -34.754866 | F115: 143.03224 | G115: 548 Paul Ln, Boundary Bend VIC 3599, Australia | H115: 30225997 | I115: BBD014 | J115: 22kV AC | K115: Rural Long | L115: - fuse (boric acid) | M115: three phase | N115: Started by any person, bird, reptile or other animal coming into contact with a distribution system | O115: LBRA only | P115: 0.2 | Q115: Moderate | R115: 0.334 | S115: 0.0668 | T115: INC-0023601 | U115: 20240102PWA_01 | V115: Reports of no supply and fuse down at above address. On arrival, crew found ground fire and evidence of flashover. Crew reported there had been a bat stuck behind the HV fuse mount. | Y115: - brackets (minor road)
A116: 17 | B116: 79 | C116: 2024-01-02 | D116: 19:31 | E116: -36.304534 | F116: 145.01381 | G116: 1367 Peppertree Ln, Kyabram VIC 3620, Australia | H116: 30250390 | I116: KYM006 | J116: Low voltage AC (<1kV) | K116: Rural Short | L116: - connection box | M116: three phase | N116: Started in or originated from a distribution system | O116: LBRA only | P116: 0.2 | Q116: Moderate | R116: 0.334 | S116: 0.0668 | T116: INC-0026475 | U116: 20240709PWA_09 | V116: Report of crossarm fire crew fouind burnt out junction box no ground fire found during Outage data review no photos found | Y116: - lamps (major road)
A117: 17 | B117: 80 | C117: 2024-01-03 | D117: 13:34 | E117: -35.474503 | F117: 143.461615 | G117: Lake Boga-Ultima Rd, Goschen VIC 3585, Australia | H117: 32156307 | I117: SHL001 | J117: 22kV AC | K117: Rural Long | L117: - transformer (pole mounted) | M117: three phase | N117: Started in or originated from a distribution system | O117: HBRA only | P117: 1 | Q117: High | R117: 0.678 | S117: 0.678 | T117: INC-0026477 | U117: 20240709PWA_10 | V117: TX LEAKING OIL needs replacing, possibly blown caused a fire. Found during OMS data review | Y117: - lamps (minor road)
A118: 17 | B118: 81 | C118: 2024-01-04 | D118: 10:57 | E118: -35.692151 | F118: 142.616858 | G118: 1761 Hopetoun-Sea Lake Rd, Woomelang VIC 3485, Australia | H118: 31022184 | I118: OYN005 | J118: 12.7kV AC (SWER) | K118: Rural Long | L118: - fuse (boric acid) | M118: single wire earth return (SWER) | N118: Started in or originated from a distribution system | O118: HBRA only | P118: 1 | Q118: Moderate | R118: 0.334 | S118: 0.334 | T118: INC-0023629 | U118: 20240104PWA_01 | V118: Fire brigade report states pole has caused grass fire Attending crew found boric acid fuse had malfunctioned and a ground fire occurred. | Y118: - luminaires (major road)
A119: 17 | B119: 82 | C119: 2024-01-05 | D119: 02:37 | E119: -34.136645 | F119: 142.030566 | G119: 554 Wentworth Rd, Merbein VIC 3505, Australia | H119: 33064909 | I119: MBN013 | J119: 22kV AC | K119: Rural Short | L119: - fuse (boric acid) | M119: three phase | N119: Started by any person, bird, reptile or other animal coming into contact with a distribution system | O119: LBRA only | P119: 0.2 | Q119: Moderate | R119: 0.334 | S119: 0.0668 | T119: INC-0023637 | U119: 20240105PWA_01 | V119: crew attending fault identified a small grassfire at base of pole. Fire had self extinguished | Y119: - luminaires (minor road)
A120: 17 | B120: 83 | C120: 2024-01-06 | D120: 13:20 | E120: -38.207361 | F120: 144.451445 | G120: 361 Melaluka Rd, Leopold VIC 3224, Australia | H120: 30595774 | I120: GLE024 | J120: Low voltage AC (<1kV) | K120: Rural Short | L120: - switch (disconnector/isolator) | M120: three phase | N120: Started in or originated from a distribution system | O120: HBRA only | P120: 1 | Q120: Moderate | R120: 0.334 | S120: 0.334 | T120: INC-0023648 | U120: 20240108PWA_01 | V120: Customer advised pole LIS 135406 is currently on fire and fire brigade on site. On arrival crew found an LV fuse box had caught fire and melted. CFA had extinguished. No ground fire. | Y120: - poles / columns (major road)
A121: 17 | B121: 84 | C121: 2024-01-06 | D121: 07:36 | E121: -35.23597 | F121: 143.456312 | G121: 244 School Rd, Beverford VIC 3590, Australia | H121: 33070419 | I121: SHL004 | J121: 22kV AC | K121: Rural Short | L121: - fuse (EDO fuse) | M121: three phase | N121: Started in or originated from a distribution system | O121: LBRA only | P121: 0.2 | Q121: Moderate | R121: 0.334 | S121: 0.0668 | T121: INC-0026478 | U121: 20240709PWA_11 | V121: Report of supply interruption crew found EDO fuse barrel burnt and on ground no ground fire Found during Outage data review | Y121: - poles / columns (minor road)
A122: 17 | B122: 85 | C122: 2024-01-07 | D122: 10:02 | E122: -36.218124 | F122: 143.897451 | G122: Ellerslie Rd, Fernihurst VIC 3518, Australia | H122: 30300397 | I122: CTN002 | J122: Low voltage AC (<1kV) | K122: Rural Long | L122: - connection box | M122: three phase | N122: Started in or originated from a distribution system | O122: within area delineated on plan LEGL./16-354 | P122: 4.6 | Q122: Moderate | R122: 0.334 | S122: 1.5364 | T122: INC-0026599 | U122: 20240716PWA_04 | V122: Nephew on site something on pole has caught on fire (sounds like a box of some sort) Fire is out no ground fire Found during Outage data review no photos located | Y122: Other
A123: 17 | B123: 86 | C123: 2024-01-07 | D123: 01:01 | E123: -36.707462 | F123: 141.188109 | G123: Bulls and Blacks Rd, Minimay VIC 3413, Australia | H123: 30620522 | I123: HSM004 | J123: 12.7kV AC (SWER) | K123: Rural Long | L123: - pole (wood) | M123: single wire earth return (SWER) | N123: Started by lightning striking a distribution system or a part of a distribution system | O123: HBRA only | P123: 1 | Q123: High | R123: 0.678 | S123: 0.678 | T123: INC-0026602 | U123: 20240716PWA_05 | V123: Pole hit by lightening and burnt off, wet around pole Pole 1 - holding the line side conductor up by tie Pole 2 - conductor on pole. no ground fire Found during Outage data review | Y123: - connection box
A124: 17 | B124: 87 | C124: 2024-01-12 | D124: 08:09 | E124: -38.459674 | F124: 144.093071 | G124: Koninderie, 60 Bimbadeen Dr, Fairhaven VIC 3231, Australia | H124: 32070192 | I124: TQY021 | J124: Low voltage AC (<1kV) | K124: Rural Short | L124: - connection box | M124: three phase | N124: Started in or originated from a distribution system | O124: within area delineated on plan LEGL./16-354 | P124: 4.6 | Q124: Moderate | R124: 0.334 | S124: 1.5364 | T124: INC-0026606 | U124: 20240716PWA_06 | V124: FOLCB on pole end burnt and melted. No ground fire Found during Outage data review | Y124: - earth / earthing
A125: 17 | B125: 88 | C125: 2024-01-13 | D125: 10:29 | E125: -36.024783 | F125: 145.313459 | G125: 1124 Tyacks Rd, Waaia VIC 3637, Australia | H125: 30126451 | I125: NKA006 | J125: Low voltage AC (<1kV) | K125: Rural Long | L125: - overhead service conductor (residential) | M125: single phase | N125: Started by any other thing forming part of or coming into contact with a distribution system | O125: LBRA only | P125: 0.2 | Q125: High | R125: 0.678 | S125: 0.1356 | T125: INC-0023749 | U125: 20240115PWA_01 | V125: Customer reports of all supply fail resulted fault crew being dispatched to the incident location. Upon arrival crew found that a LV XLPE service cable had been brought down by an unknown 3rd party and a ground fire of approx 10M x 100M in size. One customer also had POA damage and was left off supply pending REC repair.
A126: 17 | B126: 89 | C126: 2024-01-14 | D126: 14:57 | E126: -38.001112 | F126: 141.81916 | G126: 48 Camerons Ln, Breakaway Creek VIC 3303, Australia | H126: 30092785 | I126: HTN011 | J126: Low voltage AC (<1kV) | K126: Rural Long | L126: - connection box | M126: three phase | N126: Started in or originated from a distribution system | O126: within area delineated on plan LEGL./16-354 | P126: 4.6 | Q126: Moderate | R126: 0.334 | S126: 1.5364 | T126: INC-0026609 | U126: 20240716PWA_07 | V126: Box on pole approx. 2 metres off the ground appears burnt, and blackening on pole goes down to ground level. no ground fire Found during Outage data review
A127: 17 | B127: 90 | C127: 2024-01-15 | D127: 13:11 | E127: -37.771328 | F127: 144.787791 | G127: 760 Ballarat Rd, Deer Park VIC 3023, Australia | H127: 30341178 | I127: SU021 | J127: Low voltage AC (<1kV) | K127: Urban | L127: - connector / termination | M127: three phase | N127: Started in or originated from a distribution system | O127: LBRA only | P127: 0.2 | Q127: Moderate | R127: 0.334 | S127: 0.0668 | T127: INC-0023788 | U127: 20240117PWA_01 | V127: Reporting pole to pole cable has come down and is on the ground. Also advised on top of the pole end there is a FIRE on the wire. Crew found IPC connection on LV had failed causing conductor to fall with supply end remaining aloft | Y127: Extra low voltage AC (<50V)
A128: 17 | B128: 91 | C128: 2024-01-17 | D128: 16:21 | E128: -38.160744 | F128: 144.567753 | G128: 18 Barringup Ave, Clifton Springs VIC 3222, Australia | H128: 30269501 | I128: DDL022 | J128: Low voltage AC (<1kV) | K128: Urban | L128: - switch (disconnector/isolator) | M128: three phase | N128: Started in or originated from a distribution system | O128: LBRA only | P128: 0.2 | Q128: Moderate | R128: 0.334 | S128: 0.0668 | T128: INC-0026610 | U128: 20240716PWA_08 | V128: Replaced burnt out 400amp fsd no ground fire no photos found during Outage data review | Y128: Low voltage AC (<1kV)
A129: 17 | B129: 92 | C129: 2024-01-20 | D129: 15:44 | E129: -37.052419 | F129: 143.811704 | G129: Carisbrook Leisure Centre, 15 Landrigan Rd, Carisbrook VIC 3464, Australia | H129: 32029203 | I129: MRO007 | J129: Low voltage AC (<1kV) | K129: Rural Long | L129: - overhead conductor (bare; steel) | M129: three phase | N129: Started by any other thing forming part of or coming into contact with a distribution system | O129: within area delineated on plan LEGL./16-354 | P129: 4.6 | Q129: Moderate | R129: 0.334 | S129: 1.5364 | T129: INC-0023867 | U129: 20240123PWA_01 | V129: Emerg services advise truck has brought down wires at intersection of Landrigan Road and Marion Lane, Carisbrook, across from Primary School. May have potentially created small grass fire. Truck has left scene and also reports of damage at Victoria Street. | Y129: 2.2kV AC
A130: 17 | B130: 93 | C130: 2024-01-20 | D130: 21:39 | E130: -34.343764 | F130: 142.321098 | G130: 449 Johns Way, Red Cliffs VIC 3496, Australia | H130: 31021134 | I130: RCT014 | J130: 22kV AC | K130: Rural Short | L130: - overhead conductor (bare; steel) | M130: three phase | N130: Started by any person, bird, reptile or other animal coming into contact with a distribution system | O130: HBRA only | P130: 1 | Q130: High | R130: 0.678 | S130: 0.678 | T130: INC-0023880 | U130: 20240123PWA_02 | V130: Firecom reports customer call stating Grass fire at 449 Johns Way Red cliffs. Crew found Pelican has hit line, conductor on ground | Y130: 6.6kV AC
A131: 17 | B131: 94 | C131: 2024-01-20 | D131: 03:02 | E131: -35.255228 | F131: 143.435732 | G131: 28 Pompy Ln, Woorinen North VIC 3589, Australia | H131: 32159601 | I131: SHL002 | J131: 22kV AC | K131: Rural Long | L131: - fuse (EDO fuse) | M131: three phase | N131: Started in or originated from a distribution system | O131: LBRA only | P131: 0.2 | Q131: High | R131: 0.678 | S131: 0.1356 | T131: INC-0026624 | U131: 20240717PWA_03 | V131: candleing hv EDO fuse due to water ingress no ground fire no photos taken found during outage data review | Y131: 11kV AC
A132: 17 | B132: 95 | C132: 2024-01-21 | D132: 02:29 | E132: -37.86482 | F132: 144.769883 | G132: 83 Railway Ave, Laverton VIC 3028, Australia | H132: 33072703 | I132: LVN022 | J132: Low voltage AC (<1kV) | K132: Urban | L132: - switch (disconnector/isolator) | M132: three phase | N132: Started in or originated from a distribution system | O132: LBRA only | P132: 0.2 | Q132: Moderate | R132: 0.334 | S132: 0.0668 | T132: INC-0026634 | U132: 20240717PWA_07 | V132: FSD burn out - Outage data review no ground fire | Y132: 12.7kV AC (SWER)
A133: 17 | B133: 96 | C133: 2024-01-24 | D133: 03:39 | E133: -37.586601 | F133: 143.825696 | G133: 16 Macquarie Cl, Delacombe VIC 3356, Australia | H133: 30002708 | I133: BAS022 | J133: 22kV AC | K133: Rural Long | L133: - insulators | M133: three phase | N133: Started by lightning striking a distribution system or a part of a distribution system | O133: LBRA only | P133: 0.2 | Q133: Moderate | R133: 0.334 | S133: 0.0668 | T133: INC-0023909 | U133: 20240125PWA_01 | V133: Crew advised pole struck by lightning , Fire started at base of pole. | Y133: 22kV AC
A134: 17 | B134: 97 | C134: 2024-01-24 | D134: 14:14 | E134: -38.531827 | F134: 142.795898 | G134: Four Winds, 2594 Great Ocean Rd, Nirranda South VIC 3268, Australia | H134: 30137236 | I134: WBL012 | J134: 22kV AC | K134: Rural Long | L134: - overhead conductor (bare; steel) | M134: three phase | N134: Started by lightning striking a distribution system or a part of a distribution system | O134: HBRA only | P134: 1 | Q134: Moderate | R134: 0.334 | S134: 0.334 | T134: INC-0023913 | U134: 20240125PWA_02 | V134: Lightning strike hit line and line parted falling to ground causing small ground fire | Y134: 33kV AC
A135: 17 | B135: 98 | C135: 2024-01-24 | D135: 05:00 | E135: -37.993659 | F135: 143.187484 | G135: 52 McLeod Rd, Derrinallum VIC 3325, Australia | H135: 30050040 | I135: CDN006 | J135: 22kV AC | K135: Rural Long | L135: - pole (wood) | M135: three phase | N135: Started by lightning striking a distribution system or a part of a distribution system | O135: within area delineated on plan LEGL./16-354 | P135: 4.6 | Q135: Moderate | R135: 0.334 | S135: 1.5364 | T135: INC-0023926 | U135: 20240129PWA_02 | V135: An outage was reported so a crew was dispatched to patrol the area to find the cause, this was after a thunderstorm event on the morning of 24th January. The crew reached pole GEELENGA 19 and found that it had (most likely) been struck by lightning, causing a 5m x 5m ground fire at the base of the pole. | Y135: 66kV AC
A136: 17 | B136: 99 | C136: 2024-01-24 | D136: 17:05 | E136: -38.09076 | F136: 142.336819 | G136: 141 Minjah-Hawkesdale Rd, Hawkesdale VIC 3287, Australia | H136: 32197639 | I136: KRT013 | J136: 22kV AC | K136: Rural Long | L136: - pole (wood) | M136: three phase | N136: Started by lightning striking a distribution system or a part of a distribution system | O136: within area delineated on plan LEGL./16-354 | P136: 4.6 | Q136: Moderate | R136: 0.334 | S136: 1.5364 | T136: INC-0026636 | U136: 20240717PWA_08 | V136: Transformer has exploded. Parts of transformer on ground with burnt grass around. Lightning in area Outage data review no photos provided | Y136: 132kV AC
A137: 17 | B137: 100 | C137: 2024-01-25 | D137: 10:30 | E137: -38.1794 | F137: 144.389685 | G137: 230 Wilsons Rd, Whittington VIC 3219, Australia | H137: 30297658 | I137: GLE013 | J137: Low voltage AC (<1kV) | K137: Rural Short | L137: - overhead service conductor (residential) | M137: single phase | N137: Started in or originated from a distribution system | O137: LBRA only | P137: 0.2 | Q137: Moderate | R137: 0.334 | S137: 0.0668 | T137: INC-0026651 | U137: 20240718PWA_01 | V137: 3 phase n/screen service insulation failed. Due to junction box fusing arrangement Powercor is required to replace box. Liaising with REC to replace box on Powercor s behalf. REC will make contact when repairs are complete 20m of 35mm 3 phase XLPE service cable required No ground fire Outage data review no photos | Y137: 220kV AC
A138: =COUNTA(C138:O138,Q138,T138:V138) -> 17 | B138: 101 | C138: 2024-01-27 | D138: 22:15 | E138: -38.281286 | F138: 141.652653 | G138: 120 Uniting Church Camp Rd, Allestree VIC 3305, Australia | H138: 32133068 | I138: PLD001 | J138: Low voltage AC (<1kV) | K138: Rural Long | L138: - fuse (any other type) | M138: single phase | N138: Started in or originated from a distribution system | O138: HBRA only | P138: =IF(O138="","",IF(O138="LBRA only",0.2,IF(O138="HBRA only",1,IF(O138="within electric line construction area",19.8,IF(O138="within area delineated on plan LEGL./16-354",4.6,""))))) -> 1 | Q138: Moderate | R138: =IF(Q138="","",IF(Q138="No rating",0.05,IF(Q138="Moderate",0.334,IF(Q138="High",0.678,IF(Q138="Extreme",2.272,4.754))))) -> 0.334 | S138: =IF(OR(P138="",R138=""),"",IF(AND(O138="within electric line construction area",Q138="No forecast"),1,P138*R138)) -> 0.334 | T138: INC-0023923 | U138: 20240129PWA_01 | V138: Customer reported switchboard on fire and power flickering. On arrival crew found the service fuse and some wiring insulation had melted due to overheating. There was also evidence the fuse had been smoking which was also witnessed by the CFA. | Y138: 330kV AC
A139: =COUNTA(C139:O139,Q139,T139:V139) -> 17 | B139: 102 | C139: 2024-01-28 | D139: 12:07 | E139: -36.254659 | F139: 144.931839 | G139: 2121 Finlay Rd, Tongala VIC 3621, Australia | H139: 33091576 | I139: KYM006 | J139: 22kV AC | K139: Rural Short | L139: - insulators | M139: three phase | N139: Started by any person, bird, reptile or other animal coming into contact with a distribution system | O139: LBRA only | P139: =IF(O139="","",IF(O139="LBRA only",0.2,IF(O139="HBRA only",1,IF(O139="within electric line construction area",19.8,IF(O139="within area delineated on plan LEGL./16-354",4.6,""))))) -> 0.2 | Q139: Moderate | R139: =IF(Q139="","",IF(Q139="No rating",0.05,IF(Q139="Moderate",0.334,IF(Q139="High",0.678,IF(Q139="Extreme",2.272,4.754))))) -> 0.334 | S139: =IF(OR(P139="",R139=""),"",IF(AND(O139="within electric line construction area",Q139="No forecast"),1,P139*R139)) -> 0.0668 | T139: INC-0023928 | U139: 20240129PWA_03 | V139: CFA reported ground fire in vicinity of Powercor asset at the incident location. Upon arrival Shepparton fault crew found that 2 crows have caused a flashover on P122 KYM ECA 2, on KYM6 subsidiary circuit. Ground fire of approximately 75M x 55M resulted due to ignited bird remnants falling to ground, some minor damage to adjoining properties boundary fence. | Y139: 500kV AC
A140: 17 | B140: 103 | C140: 2024-02-06 | D140: 05:00 | E140: -37.572103 | F140: 142.634 | G140: Maroona-Glenthompson Rd, Stavely (near corner of Stavely Rd) | H140: 30552698 | I140: ART033 | J140: 22kV AC | K140: Rural Long | L140: - switch (any other type) | M140: three phase | N140: Started by any person, bird, reptile or other animal coming into contact with a distribution system | O140: within area delineated on plan LEGL./16-354 | P140: 4.6 | Q140: Moderate | R140: 0.334 | S140: 1.5364 | T140: INC-0024073 | U140: 20240206PWA_02 | V140: fire communications reported a grass fire. Crew in attendance reported that a NGK Gas Switch flashed over between the red and blue phases. Two sheds broken on each insulator. Flashover potentially caused by bird (non-found) or moisture as it was damp. | Y140: Extra low voltage DC (<120V ripple free)
A141: 17 | B141: 104 | C141: 2024-02-07 | D141: 15:09 | E141: -36.7215 | F141: 144.246746 | G141: 22 Crowther St, Eaglehawk VIC 3556, Australia | H141: 30024927 | I141: BET006 | J141: Low voltage AC (<1kV) | K141: Rural Short | L141: - overhead service conductor (residential) | M141: single phase | N141: Started by any tree, or part of a tree, falling upon or coming into contact with a distribution system | O141: LBRA only | P141: 0.2 | Q141: High | R141: 0.678 | S141: 0.1356 | T141: INC-0024109 | U141: 20240208PWA_01 | V141: Fire service reported that a sparking wire caused grass fire outside property. Upon arrival the crew found that a service wire insulation was impacted by a tree resulting in approximately 5m2 ground fire. | Y141: Low voltage DC (<1.5kV)
A142: 17 | B142: 105 | C142: 2024-02-09 | D142: 18:42 | E142: -35.728854 | F142: 143.106691 | G142: 40 Railway St, Culgoa VIC 3530, Australia | H142: 33016140 & 32026313 | I142: CTN003 | J142: 22kV AC | K142: Rural Long | L142: - overhead conductor (bare; steel) | M142: three phase | N142: Started by any other thing forming part of or coming into contact with a distribution system | O142: within area delineated on plan LEGL./16-354 | P142: 4.6 | Q142: High | R142: 0.678 | S142: 3.1188 | T142: INC-0024149 | U142: 20240212PWA_02 | V142: Firecom reported grassfire possibly started by PCA assets. Upon arrival crew found that a tipper truck had made contact with the HV O/H. Conductors initiated approx 0.2 HA grass fire. There were no reported injuries. | Y142: 600V DC
A143: 17 | B143: 106 | C143: 2024-02-10 | D143: 07:45 | E143: -37.384902 | F143: 143.980345 | G143: T Mays Rd, Newlyn VIC 3364, Australia | H143: 33001193 | I143: BAN009 | J143: 22kV AC | K143: Rural Long | L143: - fuse (EDO fuse) | M143: three phase | N143: Started in or originated from a distribution system | O143: within area delineated on plan LEGL./16-354 | P143: 4.6 | Q143: Moderate | R143: 0.334 | S143: 1.5364 | T143: INC-0024152 | U143: 20240212PWA_03 | V143: Vic fire reported a fire near the corner of T may rd and G May rd Newlyn, the fault crew on arrival found an EDO tube had candled and fallen to the ground starting a small fire along the roadside. The fire was extinguished, and the fire truck had left the scene. | Y143: 1500V DC
A144: 17 | B144: 107 | C144: 2024-02-10 | D144: 03:02 | E144: -37.786487 | F144: 144.661859 | G144: 738 Troups Rd S, Mount Cottrell VIC 3024, Australia | H144: 32177875 | I144: TNA022 | J144: 22kV AC | K144: Urban | L144: - insulators | M144: three phase | N144: Started in or originated from a distribution system | O144: HBRA only | P144: 1 | Q144: Moderate | R144: 0.334 | S144: 0.334 | T144: INC-0024154 | U144: 20240212PWA_04 | V144: Report of crossarm failure. On arrival crew found tracking had resulted in crossarm being burnt through at strap bolt. HV fell into LV below. There was no ground fire or reported injuries. | Y144: Earthing cable
A145: 17 | B145: 108 | C145: 2024-02-11 | D145: 16:07 | E145: -37.870573 | F145: 144.80556 | G145: 32 Kookaburra St, Altona VIC 3018, Australia | H145: 32167630 | I145: AL006 | J145: Low voltage AC (<1kV) | K145: Urban | L145: - connector / termination | M145: three phase | N145: Started in or originated from a distribution system | O145: LBRA only | P145: 0.2 | Q145: Moderate | R145: 0.334 | S145: 0.0668 | T145: INC-0024160 | U145: 20240212PWA_05 | V145: Following supply issues a crew found a burnt off copper to aluminium T clamp. There was hot molten material dropped to ground scorching a small patch of grass. There was no reported injuries.
A146: 17 | B146: 109 | C146: 2024-02-11 | D146: 18:48 | E146: -37.866334 | F146: 144.787842 | G146: 2A Valente St, Altona Meadows VIC 3028, Australia | H146: 33075201 | I146: LVN022 | J146: Low voltage AC (<1kV) | K146: Urban | L146: - connector / termination | M146: three phase | N146: Started in or originated from a distribution system | O146: LBRA only | P146: 0.2 | Q146: Moderate | R146: 0.334 | S146: 0.0668 | T146: INC-0024176 | U146: 20240213PWA_02 | V146: Customer reported Tx out front of their property exploded, seen flames and now just smoke and fire brigade onsite. Upon arrival, crew found IPC connector overheated resulted in small grass fire at the base of pole.
A147: 17 | B147: 110 | C147: 2024-02-13 | D147: 17:22 | E147: -35.306095 | F147: 143.551228 | G147: 92 Murraydale Rd, Swan Hill VIC 3585, Australia | H147: 30276240 | I147: SHL004 | J147: 22kV AC | K147: Rural Short | L147: - overhead conductor (bare; steel) | M147: three phase | N147: Started by any tree, or part of a tree, falling upon or coming into contact with a distribution system | O147: LBRA only | P147: 0.2 | Q147: Extreme | R147: 2.272 | S147: 0.4544 | T147: INC-0024226 | U147: 20240215PWA_01 | V147: Powercor received a report from CFA that vegetation had caught fire outside of 92 Murraydale Road, Swan Hill. CFA extinguished fire. No reports of grassfire. Attending crews found a branch had snapped and this branch had evidence of severe scorching. One conductor had parted and fallen to ground. No evidence was found of grass/ground fire. | Y147: single wire earth return (SWER)
A148: 17 | B148: 111 | C148: 2024-02-13 | D148: 15:47 | E148: -36.335321 | F148: 144.232332 | G148: Bendigo-Pyramid Rd, Dingee VIC 3571, Australia | H148: 32041033 | I148: EHK024 | J148: 22kV AC | K148: Rural Long | L148: - overhead conductor (bare; aluminium core steel reinforced) | M148: three phase | N148: Started by any tree, or part of a tree, falling upon or coming into contact with a distribution system | O148: within area delineated on plan LEGL./16-354 | P148: 4.6 | Q148: Extreme | R148: 2.272 | S148: 10.4512 | T148: INC-0024233 | U148: 20240215PWA_04 | V148: HV wire down reported on LIS-350311. 2 bays of conductor, road side and centre have been brought down by a tree falling onto them. There was a ground fire, 24m x 130m. | Y148: single phase
A149: 17 | B149: 112 | C149: 2024-02-13 | D149: 14:56 | E149: -36.012826 | F149: 143.467429 | G149: 50 Boyds Rd, Jeruk VIC 3527 | H149: 32022324 | I149: CTN001 | J149: 12.7kV AC (SWER) | K149: Rural Long | L149: - overhead conductor (bare; steel) | M149: single wire earth return (SWER) | N149: Started by any tree, or part of a tree, falling upon or coming into contact with a distribution system | O149: within area delineated on plan LEGL./16-354 | P149: 4.6 | Q149: Extreme | R149: 2.272 | S149: 10.4512 | T149: INC-0024260 | U149: 20240216PWA_04 | V149: Branch from Big red gum tree has fallen on conductor in between Tunstall p2 lis 601905 and p3 lis 601906. BA fuse is open and sitting at base of pole at sw 27098 jeruk east p8 Swer conductor down Crew identified small ground fire beneath fallen conductor. | Y149: two phase
A150: 17 | B150: 113 | C150: 2024-02-14 | D150: 11:37 | E150: -37.077092 | F150: 144.727293 | G150: 1615 Dairy Flat Rd, Tooborac VIC 3522, Australia | H150: 30148829 | I150: BGO023 | J150: 12.7kV AC (SWER) | K150: Rural Long | L150: - pole (wood) | M150: single wire earth return (SWER) | N150: Started by lightning striking a distribution system or a part of a distribution system | O150: within area delineated on plan LEGL./16-354 | P150: 4.6 | Q150: Moderate | R150: 0.334 | S150: 1.5364 | T150: INC-0024237 | U150: 20240215PWA_05 | V150: Pole struck by lightning resulted in pole being damaged and grass fire no reported injuries | Y150: three phase
A151: 17 | B151: 114 | C151: 2024-02-14 | D151: 11:05 | E151: -38.108424 | F151: 144.037269 | G151: Liston Lodge, 209 McCallum Rd, Inverleigh VIC 3321, Australia | H151: 33038748 | I151: WIN023 | J151: 22kV AC | K151: Rural Short | L151: - connector / termination | M151: three phase | N151: Started in or originated from a distribution system | O151: within area delineated on plan LEGL./16-354 | P151: 4.6 | Q151: Moderate | R151: 0.334 | S151: 1.5364 | T151: INC-0024238 | U151: 20240215PWA_06 | V151: Report of pole sparking and grass fire. On arrival crew found HV connection on transformer bushing had overheated dropping molten material to ground. There was a ground fire and no injuries
A152: 17 | B152: 115 | C152: 2024-02-14 | D152: 20:34 | E152: -36.720443 | F152: 144.688128 | G152: 44 Cornella-Toolleen Rd, Toolleen VIC 3551, Australia | H152: 30336794 | I152: SHP021 | J152: 22kV AC | K152: Rural Long | L152: - fuse (boric acid) | M152: three phase | N152: Started in or originated from a distribution system | O152: within area delineated on plan LEGL./16-354 | P152: 4.6 | Q152: Moderate | R152: 0.334 | S152: 1.5364 | T152: INC-0024239 | U152: 20240215PWA_07 | V152: Boric acid fuse has candled and started a grass fire no reported injuries
A153: 17 | B153: 116 | C153: 2024-02-16 | D153: 14:58 | E153: -37.04354 | F153: 144.232722 | G153: 14 A Vanstan Rd, Castlemaine VIC 3450, Australia | H153: 33026672 | I153: CMN003 | J153: 22kV AC | K153: Rural Long | L153: - overhead conductor (bare; steel) | M153: three phase | N153: Started by any tree, or part of a tree, falling upon or coming into contact with a distribution system | O153: within area delineated on plan LEGL./16-354 | P153: 4.6 | Q153: Moderate | R153: 0.334 | S153: 1.5364 | T153: INC-0024278 | U153: 20240409PWA_01 | V153: Powercor received a report of low wires. attending crew found 3 spans of line had been brought to ground when a private person felled a tree into the line a ground fire of 100 by 50 M ensued. | Y153: Negligible: no ground fire
A154: 17 | B154: 117 | C154: 2024-02-17 | D154: 13:53 | E154: -38.227083 | F154: 142.576 | G154: 420 Cooramook School Rd, Grassmere VIC 3281, Australia | H154: 33102147 | I154: KRT012 | J154: 22kV AC | K154: Rural Long | L154: - transformer (pole mounted) | M154: three phase | N154: Started in or originated from a distribution system | O154: within area delineated on plan LEGL./16-354 | P154: 4.6 | Q154: High | R154: 0.678 | S154: 3.1188 | T154: INC-0024280 | U154: 20240219PWA_01 | V154: VIC fire reported pole fire. On arrival crew found a grass fire had started at the base of a substation pole. The substation had a recently melted HV bushing cover on one phase. | Y154: Localised: less than 10 sq.m
A155: 17 | B155: 118 | C155: 2024-02-18 | D155: 12:33 | E155: -37.432225 | F155: 143.28663 | G155: 588 Old Shirley Rd, Beaufort VIC 3373, Australia | H155: 32000519 | I155: BAS011 | J155: 12.7kV AC (SWER) | K155: Rural Long | L155: - insulators | M155: single wire earth return (SWER) | N155: Started in or originated from a distribution system | O155: within area delineated on plan LEGL./16-354 | P155: 4.6 | Q155: Moderate | R155: 0.334 | S155: 1.5364 | T155: INC-0024284 | U155: 20240219PWA_02 | V155: Vic Fire reported a pole and grass fire at the incident address. Fire originated near SWER inter pole 9 and subsequent grass fire of approximately 4.5 hectares in private property. Around one third of the wooden pole top was burnt. A fallen SWER high voltage conductor located between poles 9 and 10 landed across the Ararat to Ballarat railway line. | Y155: Small: 10 - 1000 aq.m
A156: 17 | B156: 119 | C156: 2024-02-22 | D156: 11:42 | E156: -37.659194 | F156: 143.692774 | G156: 210 Vermont Rd, Smythesdale VIC 3351, Australia | H156: 33002655 | I156: BAS033 | J156: 22kV AC | K156: Rural Long | L156: - overhead conductor (bare; all aluminium conductor) | M156: three phase | N156: Started by any tree, or part of a tree, falling upon or coming into contact with a distribution system | O156: within area delineated on plan LEGL./16-354 | P156: 4.6 | Q156: Extreme | R156: 2.272 | S156: 10.4512 | T156: INC-0024351 | U156: 20240223PWA_01 | V156: Vic Fire reported a fire start. Upon arrival the crew found that a large gum tree had fallen on a line which resulted in fire start. Tree appeared to be from within the private property. | Y156: Medium: 1000 sq.m - 10 ha
A157: 17 | B157: 120 | C157: 2024-02-22 | D157: 14:39 | E157: -37.851437 | F157: 144.777665 | G157: 18 Hillman St, Laverton VIC 3028, Australia | H157: 30274126 | I157: LV006 | J157: Low voltage AC (<1kV) | K157: Urban | L157: - fuse (any other type) | M157: three phase | N157: Started in or originated from a distribution system | O157: LBRA only | P157: 0.2 | Q157: Extreme | R157: 2.272 | S157: 0.4544 | T157: INC-0024352 | U157: 20240223PWA_02 | V157: Customer (Western Autistic School) reported a fire start from pole substation which was put out by fire extinguisher. Upon arrival the crew found that one phase of FSD was burnt & melted which started a small ground fire. | Y157: Large: more than 10 ha
A158: 17 | B158: 121 | C158: 2024-02-22 | D158: 11:11 | E158: -37.718889 | F158: 144.44944 | G158: 5 Smiths Rd, Parwan VIC 3340, Australia | H158: 30299075 | I158: BMH006 | J158: 22kV AC | K158: Rural Short | L158: - overhead conductor (bare; all aluminium conductor) | M158: three phase | N158: Started in or originated from a distribution system | O158: HBRA only | P158: 1 | Q158: Extreme | R158: 2.272 | S158: 2.272 | T158: INC-0024386 | U158: 20240409PWA_02 | V158: Vic fire reported of bushfire. The ACR was also operated. Upon arrival the crew found large fire more than 5 - 10 hectares. Cause of the fire has not been determined at the time of the report. Investigators are reported to have been attending in due course.
A159: 17 | B159: 122 | C159: 2024-02-25 | D159: 16:43 | E159: -36.475978 | F159: 145.222787 | G159: 1345 Murchison-Tatura Rd, Tatura VIC 3616, Australia | H159: 33094296 | I159: MNA021 | J159: 22kV AC | K159: Rural Short | L159: - overhead conductor (bare; steel) | M159: three phase | N159: Started by any person, bird, reptile or other animal coming into contact with a distribution system | O159: LBRA only | P159: 0.2 | Q159: Moderate | R159: 0.334 | S159: 0.0668 | T159: INC-0024364 | U159: 20240226PWA_01 | V159: pelican hit the conductor causing fire to start at base of the pole. Grassfire burnt 10m wide x 30m long either side of pole mainly in road reserve and a small area in private property
A160: 17 | B160: 123 | C160: 2024-02-25 | D160: 23:39 | E160: -37.811982 | F160: 144.771528 | G160: 380 Boundary Rd, Derrimut VIC 3026, Australia | H160: 30227918 | I160: TNA014 | J160: Low voltage AC (<1kV) | K160: Urban | L160: - connection box | M160: three phase | N160: Started in or originated from a distribution system | O160: LBRA only | P160: 0.2 | Q160: High | R160: 0.678 | S160: 0.1356 | T160: INC-0026659 | U160: 20240718PWA_03 | V160: Connection at pole caused ground fire Limited information found Found during outage data review small grass fire | Y160: Started in or originated from a distribution system
A161: 17 | B161: 124 | C161: 2024-02-26 | D161: 00:20 | E161: -38.154882 | F161: 144.57775 | G161: 48A Dundundra Dr, Clifton Springs VIC 3222, Australia | H161: 32071386 | I161: DDL022 | J161: 22kV AC | K161: Urban | L161: - insulators | M161: three phase | N161: Started in or originated from a distribution system | O161: LBRA only | P161: 0.2 | Q161: High | R161: 0.678 | S161: 0.1356 | T161: INC-0024370 | U161: 20240226PWA_02 | V161: crew attending fault identified a Crossarm fire | Y161: Started by any tree, or part of a tree, falling upon or coming into contact with a distribution system
A162: 17 | B162: 125 | C162: 2024-02-27 | D162: 00:59 | E162: -37.811982 | F162: 144.771528 | G162: 380 Boundary Rd, Derrimut VIC 3026, Australia | H162: 30227918 | I162: TNA014 | J162: Low voltage AC (<1kV) | K162: Urban | L162: - LV pillar | M162: three phase | N162: Started by any person, bird, reptile or other animal coming into contact with a distribution system | O162: LBRA only | P162: 0.2 | Q162: Moderate | R162: 0.334 | S162: 0.0668 | T162: INC-0024387 | U162: 20240227PWA_02 | V162: Fire start by attempted copper theft. | Y162: Started by any person, bird, reptile or other animal coming into contact with a distribution system
A163: 17 | B163: 126 | C163: 2024-02-27 | D163: 17:24 | E163: -36.629166 | F163: 142.632519 | G163: 5 Stewart St, Rupanyup VIC 3388, Australia | H163: 32096325 | I163: STL006 | J163: 22kV AC | K163: Rural Long | L163: - pole (wood) | M163: three phase | N163: Started by any other thing forming part of or coming into contact with a distribution system | O163: LBRA only | P163: 0.2 | Q163: High | R163: 0.678 | S163: 0.1356 | T163: INC-0024416 | U163: 20240229PWA_02 | V163: Powercor was advised of a leaning pole. Crew attending site has advised, a vehicle has collided with LIS-70466, which in turn has snapped LIS-70464 at the base. it appears the associated clashing of LV mains at 2x separate locations creating 2x small fires, 2m and 1m square. | Y163: Started by lightning striking a distribution system or a part of a distribution system
A164: 17 | B164: 127 | C164: 2024-02-29 | D164: 05:39 | E164: -34.784371 | F164: 142.508044 | G164: Hattah-Robinvale Rd, Hattah VIC 3501, Australia | H164: 32140315 | I164: WETSBPA | J164: 66kV AC | K164: Rural Long | L164: - pole (wood) | M164: three phase | N164: Started by lightning striking a distribution system or a part of a distribution system | O164: HBRA only | P164: 1 | Q164: High | R164: 0.678 | S164: 0.678 | T164: INC-0024428 | U164: 20240229PWA_03 | V164: Upon arrival crew advised that 66kV pole WETS-BPA P13 LIS-6591. SAP ID: 32140315 had had a pole top fire, lightning suspected. | Y164: Started by any other thing forming part of or coming into contact with a distribution system
A165: 17 | B165: 128 | C165: 2024-03-01 | D165: 13:35 | E165: -36.318012 | F165: 145.04951 | G165: 37 Fischer St, Kyabram VIC 3620, Australia | H165: 33090501 | I165: KYM005 | J165: 22kV AC | K165: Urban | L165: - dropper / bridge | M165: three phase | N165: Started by any person, bird, reptile or other animal coming into contact with a distribution system | O165: LBRA only | P165: 0.2 | Q165: High | R165: 0.678 | S165: 0.1356 | T165: INC-0024493 | U165: 20240304PWA_01 | V165: Customer advised of bright flash from pole. After the flash the neighbours front yard caught on fire. Upon arrival the crew found that fire of approximately 7 x 2 = 14m2 was started in nature strip with bird on scene. | Y165: Otherwise started by a distribution system
A166: 17 | B166: 129 | C166: 2024-03-02 | D166: 13:29 | E166: -37.821176 | F166: 144.821035 | G166: 21 Little Boundary Rd, Laverton North VIC 3026, Australia | H166: 32178781 | I166: BLT016 | J166: 22kV AC | K166: Urban | L166: - overhead conductor (bare; aluminium core steel reinforced) | M166: three phase | N166: Started by any tree, or part of a tree, falling upon or coming into contact with a distribution system | O166: LBRA only | P166: 0.2 | Q166: Moderate | R166: 0.334 | S166: 0.0668 | T166: INC-0024497 | U166: 20240304PWA_03 | V166: fire comms - Powerlines down causing a grassfire at cnr of 818 Little Boundary Rd and Westside Dve. Attending Powercor fault crew confirmed that a council tree on the south side of Little Boundary Rd has had one of its limbs fall and contact the HV bare overhead span between LIS-17716 and LIS-17715. The contact resulted in the tripping of BLT016 CB, resulting in the customers supplied from this feeder being off supply for a short time. The contact also resulted in a grass fire at either pole (approx. 20m² per fire)
A167: 17 | B167: 130 | C167: 2024-03-05 | D167: 07:59 | E167: -36.397241 | F167: 145.295415 | G167: 60 Ardmona Rd, Ardmona VIC 3629, Australia | H167: 30131133 | I167: MNA014 | J167: 22kV AC | K167: Rural Long | L167: - insulators | M167: three phase | N167: Started by any person, bird, reptile or other animal coming into contact with a distribution system | O167: LBRA only | P167: 0.2 | Q167: Moderate | R167: 0.334 | S167: 0.0668 | T167: INC-0024550 | U167: 20240306PWA_02 | V167: Customer reported a fire caused by a bat. Upon inspection, crew said that the bat was still attached to the insulator, causing an arc and the dry grass below caught fire. The fire was extinguished last night.
A168: 17 | B168: 131 | C168: 2024-03-05 | D168: 16:33 | E168: -35.535746 | F168: 142.869267 | G168: Daniels Rd, Sea Lake VIC 3533, Australia | H168: 30100581 | I168: CTN003 | J168: 22kV AC | K168: Rural Long | L168: - pole (wood) | M168: three phase | N168: Started by any other thing forming part of or coming into contact with a distribution system | O168: within area delineated on plan LEGL./16-354 | P168: 4.6 | Q168: Moderate | R168: 0.334 | S168: 1.5364 | T168: INC-0024557 | U168: 20240306PWA_08 | V168: CFA reported wires down and fire at the incident location, Upon arrival Swan Hill fault crew found that a tractor scarifying paddock has clipped pole Collier 3, causing it to break at ground level, resulting in the 3 phase 22kV conductors clashing and making contact with ground, igniting the stubble, approximately 400m x 400m of stubble burnt, CFA in attendance. No reported injuries or 3rd party damage. HV fuses at Sea Lake P729 operated. | Y168: 1
A169: 17 | B169: 132 | C169: 2024-03-06 | D169: 09:53 | E169: -38.38327 | F169: 142.508352 | G169: 22 McGregors Rd, Warrnambool VIC 3280, Australia | H169: 30136785 | I169: WBL003 | J169: 22kV AC | K169: Urban | L169: - overhead conductor (bare; aluminium core steel reinforced) | M169: three phase | N169: Started in or originated from a distribution system | O169: LBRA only | P169: 0.2 | Q169: High | R169: 0.678 | S169: 0.1356 | T169: INC-0024554 | U169: 20240306PWA_05 | V169: HV 22kV bare conductor has failed and fell to the ground. Protection has operated. | Y169: 2
A170: 17 | B170: 133 | C170: 2024-03-06 | D170: 11:07 | E170: -38.299975 | F170: 141.577436 | G170: 187 Crowes Rd, Bolwarra VIC 3305, Australia | H170: 31019501 | I170: PLD003 | J170: 22kV AC | K170: Rural Long | L170: - insulators | M170: three phase | N170: Started in or originated from a distribution system | O170: HBRA only | P170: 1 | Q170: High | R170: 0.678 | S170: 0.678 | T170: INC-0024555 | U170: 20240306PWA_06 | V170: Pole top fire on PLD003. Dual circuit 22kV/66kV wooden pole. Fire started at 22kV crossarm and spread to ground and resulted in burnt grass area of 2000m2 | Y170: 5
A171: 17 | B171: 134 | C171: 2024-03-06 | D171: 12:42 | E171: -38.069183 | F171: 144.362779 | G171: 18 Kalver St, Corio VIC 3214, Australia | H171: 31011885 | I171: FNS011 | J171: Low voltage AC (<1kV) | K171: Rural Short | L171: - connector / termination | M171: three phase | N171: Started in or originated from a distribution system | O171: LBRA only | P171: 0.2 | Q171: High | R171: 0.678 | S171: 0.1356 | T171: INC-0024556 | U171: 20240306PWA_07 | V171: Deteriorated neutral screen service failed at customers attachment (at the roller) causing small ground fire. | Y171: 10
A172: 17 | B172: 135 | C172: 2024-03-06 | D172: 17:29 | E172: -35.951565 | F172: 145.682401 | G172: Murray Valley Hwy, Cobram VIC 3644, Australia | H172: 30143478 | I172: CME021 | J172: 22kV AC | K172: Rural Short | L172: - fuse (boric acid) | M172: three phase | N172: Started by any person, bird, reptile or other animal coming into contact with a distribution system | O172: LBRA only | P172: 0.2 | Q172: Moderate | R172: 0.334 | S172: 0.0668 | T172: INC-0024559 | U172: 20240307PWA_01 | V172: CFA reported fire in vicinity of Powercor electricity assets, Upon arrival Cobram fault crew found that a bird had flashed over on Switch pole Wyatt P1, causing a ground fire of approximately 50M x 10M in size, CFA & police in attendance, CFA extinguished fire. CME21 feeder auto reclosed for the incident. No injuries or 3rd party damage. | Y172: 15
A173: 17 | B173: 136 | C173: 2024-03-06 | D173: 09:43 | E173: -37.743157 | F173: 144.734863 | G173: 7 Toolondo Cl, Caroline Springs VIC 3023 | H173: 30225346 | I173: TNA021 | J173: Low voltage AC (<1kV) | K173: Urban | L173: - underground cable | M173: three phase | N173: Started by any person, bird, reptile or other animal coming into contact with a distribution system | O173: LBRA only | P173: 0.2 | Q173: High | R173: 0.678 | S173: 0.1356 | T173: INC-0024560 | U173: 20240307PWA_02 | V173: One bay of 4c cables supplying lighting poles has been dug up by excavation machinery during road works. Cable was hit between poles LIS 934718 and LIS 983169. Sparks and smoke coming from the pit have been noted by the crews (please refer to photos) - fire as per photo evidence. No shock resulted from incident. | Y173: 20
A174: 17 | B174: 137 | C174: 2024-03-07 | D174: 03:01 | E174: -37.332087 | F174: 144.771022 | G174: 133 Sheehans Rd, Romsey VIC 3434, Australia | H174: 32048408 | I174: GSB012 | J174: 12.7kV AC (SWER) | K174: Rural Short | L174: - insulators | M174: single wire earth return (SWER) | N174: Started in or originated from a distribution system | O174: within area delineated on plan LEGL./16-354 | P174: 4.6 | Q174: Moderate | R174: 0.334 | S174: 1.5364 | T174: INC-0024585 | U174: 20240308PWA_01 | V174: All supply fail resulted in Kyneton fault crew patrolling affected line, finding a pole fire had commenced on P10 Tickawarra, a SWER t/off structure, causing pole to burn off and fall to ground. No ground fire resulted due to damp conditions, Tickawarra P9A ACR tripped to lockout for the incident. | Y174: 25
A175: 17 | B175: 138 | C175: 2024-03-07 | D175: 09:08 | E175: -37.28039 | F175: 144.749181 | G175: Warrawee Stud, 2026 Lancefield-Kilmore Rd, Lancefield VIC 3435, Australia | H175: 31006268 | I175: WND013 | J175: 22kV AC | K175: Rural Long | L175: - insulators | M175: three phase | N175: Started in or originated from a distribution system | O175: within area delineated on plan LEGL./16-354 | P175: 4.6 | Q175: Moderate | R175: 0.334 | S175: 1.5364 | T175: INC-0024588 | U175: 20240308PWA_02 | V175: Crossarm fire, no ground fire | Y175: 30
A176: 17 | B176: 139 | C176: 2024-03-07 | D176: 10:32 | E176: -37.666895 | F176: 144.406164 | G176: 152 Mortons Rd Pentland Hills Vic | H176: 30102956 | I176: BMH003 | J176: 22kV AC | K176: Rural Long | L176: - insulators | M176: three phase | N176: Started in or originated from a distribution system | O176: HBRA only | P176: 1 | Q176: Moderate | R176: 0.334 | S176: 0.334 | T176: INC-0024596 | U176: 20240308PWA_04 | V176: Crossarm caught fire dropping hot fragments to ground igniting grass , small grass fire started. | Y176: 50
A177: 17 | B177: 140 | C177: 2024-03-07 | D177: 04:40 | E177: -37.671852 | F177: 144.601932 | G177: 27 Cameron Ct, Kurunjang VIC 3337, Australia | H177: 30103522 | I177: MLN012 | J177: 22kV AC | K177: Rural Short | L177: - insulators | M177: three phase | N177: Started in or originated from a distribution system | O177: LBRA only | P177: 0.2 | Q177: Moderate | R177: 0.334 | S177: 0.0668 | T177: INC-0024597 | U177: 20240308PWA_05 | V177: Attending Powercor fault crew confirmed that the HV crossarm on HV/LV pole LIS-110926 caught fire and left burn marks on the pole. This resulted in the crossarm breaking and the blue HV phase making contact with the LV bare overhead line beneath. Upon inspection by the LEI, the contact did not result in a confirmed HVI. There was no reported injury, shocks, ground fire or any third party damage as a result of this incident. | Y177: 100
A178: 17 | B178: 141 | C178: 2024-03-08 | D178: 22:56 | E178: -38.285362 | F178: 142.029996 | G178: 155 Henshaws Rd, Yambuk VIC 3285, Australia | H178: 30227220 | I178: KRTPLD2 | J178: 66kV AC | K178: Rural Long | L178: - insulators | M178: three phase | N178: Started in or originated from a distribution system | O178: within area delineated on plan LEGL./16-354 | P178: 4.6 | Q178: Moderate | R178: 0.334 | S178: 1.5364 | T178: INC-0024608 | U178: 20240312PWA_01 | V178: A customer reported "all the poles in the street are sparking and heard a loud bang from pole across the road. Sparks started a grass fire and she had to put it out." On arrival the crew found that the insulators on P161 KRT-PLD No2 YWF 66kV Line (LISW-985007) had flashed over due to a large build-up of salt due to a long dry spell, combined with a very thick fog. A small grass fire of less than 0.5m2 occurred on the ground below the pole, which the customer had extinguished. There was no other damage or injuries reported. No photos were available of the pole due to the fog and darkness.
A179: 17 | B179: 142 | C179: 2024-03-08 | D179: 23:40 | E179: -38.472331 | F179: 144.042757 | G179: 745 Great Ocean Rd, Eastern View VIC 3231, Australia | H179: 32083486 | I179: TQY021 | J179: Low voltage AC (<1kV) | K179: Rural Short | L179: - overhead service conductor (residential) | M179: single phase | N179: Started in or originated from a distribution system | O179: within area delineated on plan LEGL./16-354 | P179: 4.6 | Q179: Moderate | R179: 0.334 | S179: 1.5364 | T179: INC-0026791 | U179: 20240725PWA_04 | V179: Service wire was smoking and previously on fire. Still supply at premise as per emergency services. Found during Outage data review no ground fire no photos
A180: 17 | B180: 143 | C180: 2024-03-09 | D180: 10:40 | E180: -38.131699 | F180: 143.229737 | G180: Camperdown-Lismore Rd, Kariah VIC 3260, Australia | H180: 30042332 | I180: CDN004 | J180: 22kV AC | K180: Rural Long | L180: - insulators | M180: three phase | N180: Started in or originated from a distribution system | O180: within area delineated on plan LEGL./16-354 | P180: 4.6 | Q180: Extreme | R180: 2.272 | S180: 10.4512 | T180: INC-0024612 | U180: 20240312PWA_03 | V180: Fire crews reported: Pole/Crossarm fire on Camperdown-Lismore Rd, near Milangil Rd - approx. 20m of grass burnt. On arrival the fault crew found that a grey fog type insulator had burnt through the crossarm, allowing the 22kV HV conductor to rest on the top of the HV crossarm. A ground fire occurred around the base of the pole approx. 40m x 10m = 400m2 in size, which was extinguished by fire crews. There were no reported injuries, most of the area burnt was road reserve, with only superficial third-party damage to fences and pasture.
A181: 17 | B181: 144 | C181: 2024-03-09 | D181: 19:00 | E181: -37.686158 | F181: 144.53547 | G181: 790 High St, Melton West VIC 3337, Australia | H181: 33074803 | I181: MLN022 | J181: 22kV AC | K181: Rural Short | L181: - overhead conductor (bare; aluminium core steel reinforced) | M181: three phase | N181: Started in or originated from a distribution system | O181: HBRA only | P181: 1 | Q181: Extreme | R181: 2.272 | S181: 2.272 | T181: INC-0024613 | U181: 20240312PWA_04 | V181: Overhead conductor parted at insulator and fell to ground resulting in ground fire
A182: 17 | B182: 145 | C182: 2024-03-09 | D182: 07:10 | E182: -34.293119 | F182: 142.162789 | G182: 37 Boobook Ave, Red Cliffs VIC 3496, Australia | H182: 30097086 | I182: RCT023 | J182: Low voltage AC (<1kV) | K182: Rural Long | L182: - connector / termination | M182: three phase | N182: Started in or originated from a distribution system | O182: LBRA only | P182: 0.2 | Q182: High | R182: 0.678 | S182: 0.1356 | T182: INC-0024619 | U182: 20240312PWA_06 | V182: At BOOBOOK BLK 369 4 substation an IPC on LV leads has failed then caught fire, it has subsequently dropped burning material to the ground this has started a small grass fire. CFA were on site and contained fire. No other asset or property damage reported. No injuries reported.
A183: 17 | B183: 146 | C183: 2024-03-09 | D183: 04:00 | E183: -38.298563 | F183: 142.02721 | G183: 5 Henshaws Rd, Yambuk VIC 3285, Australia | H183: 30227207 | I183: KRTPLD2 | J183: 66kV AC | K183: Rural Long | L183: - insulators | M183: three phase | N183: Started in or originated from a distribution system | O183: within area delineated on plan LEGL./16-354 | P183: 4.6 | Q183: Extreme | R183: 2.272 | S183: 10.4512 | T183: INC-0024626 | U183: 20240312PWA_07 | V183: Vic Emergency reported a grassfire at the incident location. On arrival the crew found that a flashover had occurred involving all three phases and all of the insulators on P174 KRT-PLD No2 YWF 66kV Line (LIS-984992), apparently due to a large salt build up and heavy fog/dew. This flashover resulted in debris falling to the ground and causing a grassfire of approx. 25m x 4m = 100m2. There was damage caused to an adjacent fence by the fire, however no injuries were reported.
A184: 17 | B184: 147 | C184: 2024-03-09 | D184: 03:30 | E184: -38.266056 | F184: 142.86919 | G184: Princes Hwy, Terang VIC 3264, Australia | H184: 30134373 | I184: TRGWBL1 | J184: 66kV AC | K184: Rural Long | L184: - connector / termination | M184: three phase | N184: Started in or originated from a distribution system | O184: within area delineated on plan LEGL./16-354 | P184: 4.6 | Q184: Extreme | R184: 2.272 | S184: 10.4512 | T184: INC-0024631 | U184: 20240312PWA_08 | V184: Vic Emergency reported a grassfire at the incident location that may have been started by Powercor assets. On arrival the crew found that an Ampac connection on the centre phase 66kV bridge had failed on P1250 TRG-WBL No1 66kV Line (LIS-408477), causing debris to fall to the ground and starting a small grassfire of approx. 12m x 3m = 36m2 in size. There were no injuries or other damage reported.
A185: 17 | B185: 148 | C185: 2024-03-09 | D185: 21:48 | E185: -35.354322 | F185: 143.543652 | G185: 70A Yana St, Swan Hill VIC 3585, Australia | H185: 32157423 | I185: SHL007 | J185: 22kV AC | K185: Urban | L185: - overhead conductor (bare; steel) | M185: three phase | N185: Started in or originated from a distribution system | O185: LBRA only | P185: 0.2 | Q185: High | R185: 0.678 | S185: 0.1356 | T185: INC-0024635 | U185: 20240312PWA_09 | V185: Yana P18A HV CHP 'B' phase failed below insulating sheds. This failure has caused a short circuit load on upstream steel conductor which has then caused a steel HV splice to fail. The conductor has then fallen onto LV and ground. A small ground fire also started but was quickly extinguished.
A186: 17 | B186: 149 | C186: 2024-03-10 | D186: 12:57 | E186: -37.868995 | F186: 144.807687 | G186: 1 Robin St, Altona VIC 3018, Australia | H186: 32167311 | I186: AL007 | J186: Low voltage AC (<1kV) | K186: Urban | L186: - switch (disconnector/isolator) | M186: three phase | N186: Started in or originated from a distribution system | O186: LBRA only | P186: 0.2 | Q186: High | R186: 0.678 | S186: 0.1356 | T186: INC-0024609 | U186: 20240312PWA_02 | V186: crew attending fault identified that a lead had failed at a LV Isolator resulting in a small fire around the base of the pole and nature strip
A187: 17 | B187: 150 | C187: 2024-03-10 | D187: 21:00 | E187: -37.791356 | F187: 144.800198 | G187: 22 Ralph St, Sunshine West VIC 3020, Australia | H187: 32163781 | I187: SU035 | J187: Low voltage AC (<1kV) | K187: Urban | L187: - fuse (any other type) | M187: three phase | N187: Started in or originated from a distribution system | O187: LBRA only | P187: 0.2 | Q187: High | R187: 0.678 | S187: 0.1356 | T187: INC-0024694 | U187: 20240314PWA_05 | V187: LV Fused Isolator burnt out and caused small fire at base of pole.
A188: 17 | B188: 151 | C188: 2024-03-11 | D188: 13:00 | E188: -37.975512 | F188: 144.491089 | G188: 114 Minns Rd, Little River VIC 3211, Australia | H188: 30059670 | I188: FNS022 | J188: Low voltage AC (<1kV) | K188: Rural Short | L188: - connection box | M188: three phase | N188: Started in or originated from a distribution system | O188: HBRA only | P188: 1 | Q188: High | R188: 0.678 | S188: 0.678 | T188: INC-0024661 | U188: 20240313PWA_02 | V188: Fuse box fire on a pole caused a small grassfire
A189: 17 | B189: 152 | C189: 2024-03-11 | D189: 16:45 | E189: -38.052583 | F189: 141.712478 | G189: 130 Milltown Mission Rd, Milltown VIC 3304, Australia | H189: 32129379 | I189: HYT011 | J189: 22kV AC | K189: Rural Short | L189: - overhead conductor (bare; steel) | M189: three phase | N189: Started by any tree, or part of a tree, falling upon or coming into contact with a distribution system | O189: HBRA only | P189: 1 | Q189: Extreme | R189: 2.272 | S189: 2.272 | T189: INC-0024662 | U189: 20240313PWA_03 | V189: Tree on powerlines and grass had caught fire
A190: 17 | B190: 153 | C190: 2024-03-11 | D190: 20:07 | E190: -36.752048 | F190: 142.176335 | G190: 339 Golf Course Rd, Haven VIC 3401, Australia | H190: 30138325 | I190: HSM004 | J190: 12.7kV AC (SWER) | K190: Rural Long | L190: - pole (wood) | M190: single wire earth return (SWER) | N190: Started in or originated from a distribution system | O190: HBRA only | P190: 1 | Q190: High | R190: 0.678 | S190: 0.678 | T190: INC-0024668 | U190: 20240313PWA_07 | V190: Ms Kerryn Prouse reported pole fire at the pole in her front yard Crew reported that it seems that there was a broken HV SWER that has melted away, causing a pole fire below
A191: 17 | B191: 154 | C191: 2024-03-12 | D191: 11:09 | E191: -36.056953 | F191: 142.056247 | G191: 170 Ellam-Willenabrina Rd, Jeparit VIC 3423, Australia | H191: 32103878 | I191: NHL015 | J191: 12.7kV AC (SWER) | K191: Rural Long | L191: - overhead conductor (bare; steel) | M191: single wire earth return (SWER) | N191: Started by any other thing forming part of or coming into contact with a distribution system | O191: HBRA only | P191: 1 | Q191: High | R191: 0.678 | S191: 0.678 | T191: INC-0024665 | U191: 20240313PWA_04 | V191: SWER line had been brought down by a truck , started grass fire.
A192: 17 | B192: 155 | C192: 2024-03-12 | D192: 14:02 | E192: -38.294119 | F192: 144.392491 | G192: 33 Horwood Dr, Breamlea VIC 3227, Australia | H192: 32070503 | I192: WPD022 | J192: 22kV AC | K192: Rural Short | L192: - insulators | M192: three phase | N192: Started in or originated from a distribution system | O192: within area delineated on plan LEGL./16-354 | P192: 4.6 | Q192: Moderate | R192: 0.334 | S192: 1.5364 | T192: INC-0024667 | U192: 20240313PWA_06 | V192: Fire coms reporting tree branch has brought down wires and started a pole fire. crew found pole top fire on pole 25, no involvement from branch.
A193: 17 | B193: 156 | C193: 2024-03-12 | D193: 16:36 | E193: -35.810357 | F193: 144.215388 | G193: 28 Sampson St, Cohuna VIC 3568, Australia | H193: 32038185 | I193: CHA003 | J193: 22kV AC | K193: Rural Short | L193: - fuse (EDO fuse) | M193: three phase | N193: Started in or originated from a distribution system | O193: LBRA only | P193: 0.2 | Q193: High | R193: 0.678 | S193: 0.1356 | T193: INC-0024670 | U193: 20240313PWA_08 | V193: Candling fuse caught fire no ground fire
A194: 17 | B194: 157 | C194: 2024-03-12 | D194: 15:44 | E194: -36.364396 | F194: 145.455655 | G194: 365A New Dookie Rd, Lemnos VIC 3631, Australia | H194: 30270908 | I194: SHN014 | J194: 22kV AC | K194: Urban | L194: - insulators | M194: three phase | N194: Started by any person, bird, reptile or other animal coming into contact with a distribution system | O194: LBRA only | P194: 0.2 | Q194: High | R194: 0.678 | S194: 0.1356 | T194: INC-0024674 | U194: 20240314PWA_01 | V194: Customer reported "pole top exploded' and set ground on fire. Upon arrival crew found a bat that had been on the insulator for a while has somehow shorted, caught fire then dropped to the ground and ignited the grass underneath. Fire contained to approx. 3m X 2m. No media No injuries reported.
A195: 17 | B195: 158 | C195: 2024-03-13 | D195: 17:00 | E195: -38.374002 | F195: 142.491805 | G195: 96 Jamieson St, Warrnambool VIC 3280, Australia | H195: 32198218 | I195: WBL008 | J195: Low voltage AC (<1kV) | K195: Urban | L195: - overhead service conductor (residential) | M195: single phase | N195: Started in or originated from a distribution system | O195: LBRA only | P195: 0.2 | Q195: Moderate | R195: 0.334 | S195: 0.0668 | T195: INC-0024680 | U195: 20240314PWA_02 | V195: A Powercor crew working at the WBL ZSS called to report that they could see a conductor sparking across Jamieson St. On arrival the fault crew found a sparking 4 core service cable between LIS-12583 & LIS-13077. Whilst they were preparing to isolate the supply to the service cable, it dropped some sparks into the roadside grassed area, starting a small grassfire approx. 1m2 in size. The fault crew extinguished the fire, and the CFA were not required.
A196: 17 | B196: 159 | C196: 2024-03-13 | D196: 08:31 | E196: -35.95522 | F196: 145.556881 | G196: Churchill Rd, Yarroweyah VIC 3644, Australia | H196: 33083064 | I196: NKA005 | J196: 22kV AC | K196: Rural Short | L196: - insulators | M196: three phase | N196: Started by any person, bird, reptile or other animal coming into contact with a distribution system | O196: LBRA only | P196: 0.2 | Q196: Moderate | R196: 0.334 | S196: 0.0668 | T196: INC-0024683 | U196: 20240314PWA_03 | V196: arroweyah Fire Brigade called to advise grass fire underneath pole on CRN of Chruchill Road and Kokoda Road, also customer on corner reports intermittent supply at time of fire. Upon arrival the crew found a burnt bird on ground which appeared to be caused from flashover by bridging the insulator.
A197: 17 | B197: 160 | C197: 2024-03-13 | D197: 19:00 | E197: -37.789586 | F197: 144.845385 | G197: 43 Duke St, Sunshine VIC 3020, Australia | H197: 32167518 | I197: SSE034 | J197: 22kV AC | K197: Urban | L197: - crossarm (wood) | M197: three phase | N197: Started in or originated from a distribution system | O197: LBRA only | P197: 0.2 | Q197: Moderate | R197: 0.334 | S197: 0.0668 | T197: INC-0024695 | U197: 20240314PWA_06 | V197: Pole fire tracking across brown insulators caused crossarm to burn.
A198: 17 | B198: 161 | C198: 2024-03-13 | D198: 13:00 | E198: -37.896932 | F198: 144.661559 | G198: 20 Scotsburn Grv, Werribee VIC 3030, Australia | H198: 32166268 | I198: WBE024 | J198: Low voltage AC (<1kV) | K198: Urban | L198: - overhead service conductor (residential) | M198: single phase | N198: Started in or originated from a distribution system | O198: LBRA only | P198: 0.2 | Q198: Moderate | R198: 0.334 | S198: 0.0668 | T198: INC-0026785 | U198: 20240725PWA_02 | V198: Customer reports fire this morning at top of power pole. Fire and arching has now stopped, Replaced damaged neutral screen service no ground fire Found during Outage data review no photos of incident provided
A199: 17 | B199: 162 | C199: 2024-03-13 | D199: 14:40 | E199: -38.206173 | F199: 142.205327 | G199: Tarrone North Rd, Tarrone VIC 3283, Australia | H199: 30622128 | I199: KRTPLD2 | J199: 66kV AC | K199: Rural Long | L199: - insulators | M199: three phase | N199: Started in or originated from a distribution system | O199: within area delineated on plan LEGL./16-354 | P199: 4.6 | Q199: Moderate | R199: 0.334 | S199: 1.5364 | T199: INC-0026793 | U199: 20240725PWA_05 | V199: KRT-PLD No.2 66kV Line has Tripped to Lock Out. Wires down at LIS 6481 Possible pole fire cause crew had to walk in and to dark for photos ATL aware No ground fire Found during Outage data review
A200: 17 | B200: 163 | C200: 2024-03-14 | D200: 14:43 | E200: -37.056739 | F200: 143.863126 | G200: 3414 Pyrenees Hwy, Carisbrook VIC 3464, Australia | H200: 30023519 | I200: MRO007 | J200: 22kV AC | K200: Rural Long | L200: - automatic circuit recloser (ACR) | M200: three phase | N200: Started by any person, bird, reptile or other animal coming into contact with a distribution system | O200: within area delineated on plan LEGL./16-354 | P200: 4.6 | Q200: High | R200: 0.678 | S200: 3.1188 | T200: INC-0024699 | U200: 20240314PWA_07 | V200: Crew investigating outage found bird/s had caused flashover on Automatic circuit recloser structure. Fire brigade had extinguished small fire. 10 X 5 m
A201: 17 | B201: 164 | C201: 2024-03-14 | D201: 16:50 | E201: -38.180397 | F201: 144.375586 | G201: 42 Fellmongers Rd, Breakwater VIC 3219, Australia | H201: 32068323 | I201: GLE012 | J201: 22kV AC | K201: Urban | L201: - insulators | M201: three phase | N201: Started in or originated from a distribution system | O201: LBRA only | P201: 0.2 | Q201: Moderate | R201: 0.334 | S201: 0.0668 | T201: INC-0024702 | U201: 20240315PWA_01 | V201: The fire authority reported a pole fire. On arrival the crew confirmed a pole had caught fire, the HV intermediate crossarm was severely burnt. The fire had spread to the below ground causing a small grass fire. The pole required replacement.
A202: 17 | B202: 165 | C202: 2024-03-14 | D202: 20:11 | E202: -38.160493 | F202: 144.345989 | G202: 2 Bloomsbury St, Newtown VIC 3220, Australia | H202: 30058211 | I202: GL022 | J202: 22kV AC | K202: Urban | L202: - insulators | M202: three phase | N202: Started in or originated from a distribution system | O202: LBRA only | P202: 0.2 | Q202: Moderate | R202: 0.334 | S202: 0.0668 | T202: INC-0026784 | U202: 20240725PWA_01 | V202: hv int x arm , burnt due to tracking, arm broke in half and dropped one phase into lv. No hv injection No Ground fire Outage data review
A203: =COUNTA(C203:O203,Q203,T203:V203) -> 17 | B203: 166 | C203: 2024-03-14 | D203: 11:20 | E203: -36.079554 | F203: 141.660443 | G203: Warraquil East Rd, Netherby VIC 3418, Australia | H203: 32105641 | I203: NHL016 | J203: 12.7kV AC (SWER) | K203: Rural Long | L203: - insulators | M203: three phase | N203: Started in or originated from a distribution system | O203: HBRA only | P203: =IF(O203="","",IF(O203="LBRA only",0.2,IF(O203="HBRA only",1,IF(O203="within electric line construction area",19.8,IF(O203="within area delineated on plan LEGL./16-354",4.6,""))))) -> 1 | Q203: High | R203: =IF(Q203="","",IF(Q203="No rating",0.05,IF(Q203="Moderate",0.334,IF(Q203="High",0.678,IF(Q203="Extreme",2.272,4.754))))) -> 0.678 | S203: =IF(OR(P203="",R203=""),"",IF(AND(O203="within electric line construction area",Q203="No forecast"),1,P203*R203)) -> 0.678 | T203: INC-0026797 | U203: 20240725PWA_06 | V203: Netherby north pole13 pole fire P bracket installed no ground fire no photos Found during Outage data review
A204: 17 | B204: 167 | C204: 2024-03-15 | D204: 19:52 | E204: -35.348257 | F204: 143.562394 | G204: 4 Gray St, Swan Hill VIC 3585, Australia | H204: 32155667 | I204: SHL007 | J204: Low voltage AC (<1kV) | K204: Urban | L204: - switch (disconnector/isolator) | M204: three phase | N204: Started in or originated from a distribution system | O204: LBRA only | P204: 0.2 | Q204: Moderate | R204: 0.334 | S204: 0.0668 | T204: INC-0024732 | U204: 20240318PWA_06 | V204: CFA reported, pole fire started a grass fire. intersection Gray St and Campbell St. crew found Lv isolator had ruptured and dropped partially burnt material to the ground below
A205: 17 | B205: 168 | C205: 2024-03-16 | D205: 20:40 | E205: -38.691908 | F205: 143.155702 | G205: Old Ocean Road, Princetown VIC 3269, Australia | H205: 30566740 | I205: COB011 | J205: 22kV AC | K205: Rural Long | L205: - overhead conductor (bare; aluminium core steel reinforced) | M205: three phase | N205: Started by any person, bird, reptile or other animal coming into contact with a distribution system | O205: HBRA only | P205: 1 | Q205: High | R205: 0.678 | S205: 0.678 | T205: INC-0024718 | U205: 20240318PWA_01 | V205: The fire authority reported a grass fire had occurred due to a pole fire. On arrival the crew confirmed that there was no pole fire, however a grass fire had occurred due to a swan flying into the HV conductor. The swan had fallen to the ground, starting the grass fire which totalled approximately 30m x 30m.
A206: 17 | B206: 169 | C206: 2024-03-16 | D206: 22:18 | E206: -35.983209 | F206: 145.695608 | G206: Chapel Rd, Cobram East VIC 3644, Australia | H206: 33085672 | I206: NKACME | J206: 22kV AC | K206: Rural Long | L206: - overhead conductor (bare; all aluminium conductor) | M206: three phase | N206: Started by any person, bird, reptile or other animal coming into contact with a distribution system | O206: LBRA only | P206: 0.2 | Q206: Moderate | R206: 0.334 | S206: 0.0668 | T206: INC-0026800 | U206: 20240725PWA_07 | V206: Vicfire reported pole fire. intersection of chapel rd and healy rd. Crew found bird had flashed over Small grass fire Found during Outage data review
A207: 17 | B207: 170 | C207: 2024-03-19 | D207: 07:09 | E207: -37.067677 | F207: 142.769418 | G207: 11A Ararat Rd, Stawell VIC 3380, Australia | H207: 30078114 | I207: ARTSTL | J207: 66kV AC | K207: Rural Long | L207: - pole (wood) | M207: three phase | N207: Started in or originated from a distribution system | O207: LBRA only | P207: 0.2 | Q207: High | R207: 0.678 | S207: 0.1356 | T207: INC-0024755 | U207: 20240319PWA_02 | V207: Pole top fire on 66kV wood pole. Fire attributed to leakage current between steel crossarms supporting 66kV ARTSTL circuits. No ground fire.
A208: 17 | B208: 171 | C208: 2024-03-19 | D208: 16:53 | E208: -36.900142 | F208: 141.226768 | G208: 1386 Patyah road Patyah Vic 3318 | H208: 32122568 | I208: CHM011 | J208: 12.7kV AC (SWER) | K208: Rural Long | L208: - pole (wood) | M208: single wire earth return (SWER) | N208: Started in or originated from a distribution system | O208: HBRA only | P208: 1 | Q208: High | R208: 0.678 | S208: 0.678 | T208: INC-0024767 | U208: 20240320PWA_01 | V208: Fire and fallen pole reported, person reported receiving electric shock from fire suppression equipment. Attending crew found pole was burnt near ground level and lying on ground with conductor attached. a ground fire ensued
A209: 17 | B209: 172 | C209: 2024-03-19 | D209: 11:43 | E209: -36.731219 | F209: 144.26355 | G209: 48 Sandhurst Rd, California Gully VIC 3556, Australia | H209: 33019314 | I209: EHK023 | J209: 22kV AC | K209: Rural Short | L209: - surge diverter | M209: three phase | N209: Started in or originated from a distribution system | O209: LBRA only | P209: 0.2 | Q209: Moderate | R209: 0.334 | S209: 0.0668 | T209: INC-0024781 | U209: 20240320PWA_04 | V209: Surge arrestor has ruptured during REFCL testing. Bits of surge arrestor fell to the ground and started a very small ground fire (approx. 0.1m2).
A210: 17 | B210: 173 | C210: 2024-03-19 | D210: 14:15 | E210: -36.333913 | F210: 144.641222 | G210: Odonnell Rd, Rochester VIC 3561 (Near intersection of Odonnell Rd and Lowe Rd) | H210: 32183808 | I210: SHP012 | J210: 22kV AC | K210: Rural Long | L210: - insulators | M210: three phase | N210: Started in or originated from a distribution system | O210: LBRA only | P210: 0.2 | Q210: Moderate | R210: 0.334 | S210: 0.0668 | T210: INC-0024784 | U210: 20240320PWA_05 | V210: Crossarm broke due to tracking. This caused the conductor to fall down and start grass fire.
... 127 more rows

Sheet 3. Systems and Audit
B1: =IF(Cover!D27="","[DNSP Name]", Cover!D27) -> Powercor
B2: F-factor data reporting
B3: =IF(Cover!D33="","[Year]",Cover!D33) -> 2023/24
B6: Instructions:
B8: =IF(Cover!D27="","[DNSP Name] must provide:", CONCATENATE(Cover!D27," must provide:")) -> Powercor must provide:
B10: Table 4 - Information or reporting systems
B11: (1) Name of any IT system used to collect fire start data or fault event data - i.e. SCADA system, or fault reporting system
B12: (2) Whether the fire recording or fault recording process has been audited or complies with a relevant Australian or industry standard - Yes or No
B13: (3) List any relevant Australian or industry standards that the fire recording or fault recording process complies with
B14: (4) Whether the data entered into or removed from the IT system has been audited - Yes or No
B17: Table 4: Information or reporting systems
B19: Information or reporting systems | C19: Name | D19: System Audited | E19: Relevant Standards
B20: System 1 | C20: Network Incidents Database | D20: Yes | E20: None applicable
B21: System 2 | C21: Outage Management System (OMS) | D21: Yes | E21: None applicable
B22: System 3 | C22: Smallworld GIS (Graphical Information System) | D22: Yes | E22: None applicable
B23: System 4
B24: System 5
B25: System 6
B26: System 7
B27: System 8
B29: The SGSPAA Internal Audit function undertakes a programme of work in accordance with the SGSPAA Group Internal Audit Plan. This internal audit activity covers elements of the systems and process used for capturing, recording and maintaining fire start data.
